{"text_format":"1","workbook":"xlsx","n_sheets":12,"sheets":["LISEZ-MOI","Liste","Conversions","Contrôle","Page de garde","Id_CR_SF","Activité EHPAD & PUV","Activité autres ESMS","Activité L.242-4 CASF","SAAD","Activité EHPAD_SF","Activité ESMS_SF"],"not_rendered":{"charts":0,"images":9,"macros":1,"external_links":0,"defined_names":1239,"comments":0,"pivot_tables":0},"unopened":[],"bounds":{"document_bytes":16777216,"sheet_cells":100000,"rows_first":2000,"rows_last":500,"rows_between":2000,"halvings":0,"cell_chars":16384,"cell_head_chars":4096},"cells_cut":0,"cells_raw":0,"read":"whole","date_system":"1900"}

{"sheet":"LISEZ-MOI","index":0,"n_rows":137,"n_cols":4,"rows_kept":137,"cut":false,"hidden":false,"merged":[[135,2,135,7],[136,2,136,11],[124,2,124,11],[114,2,114,7],[115,2,115,11],[117,2,117,7],[118,2,118,11],[120,2,120,7],[121,2,121,11],[129,2,129,7],[133,2,133,11],[1,1,1,11],[3,2,3,11],[5,2,5,11],[6,2,6,11],[10,2,10,11],[11,2,11,11],[4,2,4,11],[13,2,13,11],[14,2,14,11],[53,1,53,11],[45,2,45,11],[46,2,46,11],[47,2,47,11],[16,2,16,11],[20,2,20,11],[28,2,28,11],[34,2,34,11],[42,2,42,11],[43,2,43,11],[31,2,31,11],[55,2,55,7],[79,2,79,11],[81,2,81,7],[64,3,64,11],[66,2,66,7],[71,2,71,7],[72,2,72,11],[74,2,74,7],[77,2,77,7],[56,2,56,11],[58,2,58,7],[59,2,59,11],[61,2,61,7],[82,2,82,11],[84,2,84,7],[85,2,85,11],[87,2,87,7],[88,2,88,11],[90,2,90,7],[91,2,91,11],[93,2,93,7],[94,2,94,11],[96,2,96,7],[97,2,97,11],[99,2,99,7],[100,2,100,11],[102,2,102,7],[103,2,103,11],[105,2,105,7],[106,2,106,11],[108,2,108,7],[130,2,130,11],[132,2,132,7],[109,2,109,11],[111,2,111,7],[112,2,112,11],[126,2,126,7],[127,2,127,11],[123,2,123,7]]}
[]
[null,"Lisez-moi du cadre \"Activité prévisionnelle\""]
[]
[null,null,"Ce cadre correspond aux tableaux relatifs à l'activité prévisionelle des établissements et services prévus à l'article R. 314-219 du CASF et conformes au format prévu par l'arrêté du 27 décembre 2016 modifié par l'arrêté du 18 juin 2018 (NOR: SSAA1804876A). "]
[null,null,"Il comprend l'ensemble des modèles applicables (4A à 4D). De fait, un seul fichier regroupant toutes les annexes activité prévisionnelles de tous les budgets inclus dans l'EPRD doit être joint au dossier sur la plateforme ImportEPRD. Il est à transmettre au plus tard le 31 octobre de l'année N-1."]
[null,null,"A noter : dans un souci d'adaptation permanente aux pratiques et sans préjudice des obligations générales de dépôt, des ajustements ponctuels peuvent être apportés par rapport aux modèles joints à l'arrêté précité et régularisés ultérieurement par arrêté modificatif."]
[]
[]
[null,null,"I.- Fonctionnement du cadre "]
[]
[null,null,"Ce cadre fonctionne sur la base d'un procédé de création automatique des onglets en remplissant le tableau de page de garde nommé « Liste des établissements et services"]
[null,null,"relevant du périmètre de l'EPRD » et en cliquant sur l’icône : + , selon l’ordonnancement suivant : "]
[null,null,"1) Le finess juridique (FINESS EJ) doit être saisi dans le champ situé en haut de la page de garde (Champ nommé « N° FINESS (entité juridique) »)."]
[null,null,"2) Chacun des finess Etablissement (FINESS ET) relevant de l’organisme gestionnaire (c'est-à-dire du Finess EJ renseigné plus haut) et inclus dans le périmètre de l’EPRD,"]
[null,null," doit être renseigné dans le tableau du bas de la page de garde \"Liste des établissements et services relevant du périmètre de l'EPRD\". "]
[]
[null,null,"Dans ce tableau, il convient de saisir une ligne par établissement ou service (nommé ci-après FINESS ET pour plus de simplicité), selon les modalités suivantes : "]
[null,null,"a) 1er finess ET : "]
[null,null,"i)     saisie de la première ligne"]
[null,null,"ii)   puis clic sur l’icône +"]
[null,null,"iii) l’onglet de l'annexe \"Activité prévisionnelle\" relatif au 1er FINESS ET est alors automatiquement généré.  "]
[null,null,"b) 2ème finess ET : "]
[null,null,"i)     saisie de la deuxième ligne"]
[null,null,"ii)   puis clic sur l’icône +"]
[null,null,"iii) l’onglet de l'annexe \"Activité prévisionnelle\" relatif au 2ème FINESS ET est alors automatiquement généré.  "]
[null,null,"c) Etc. "]
[]
[null,null,"Les champs à saisir obligatoirement sur chaque ligne, pour que les onglets soient effectivement générés, sont: "]
[null,null,"- \"N° FINESS Etablissement\" \n- \"Catégorie\""]
[]
[null,null,"II.- Consignes d'utilisation"]
[]
[null,null,"- Les cellules sur fond jaune sont à compléter manuellement. Les champs grisés sont des cellules verrouillées, qui peuvent contenir des formules de calcul automatique."]
[null,null,"- Le cadre normalisé n'est pas compatible avec Libre Office ni Open Office.  "]
[null,null,"- Veuillez ne pas \"couper-coller\"/\"copier-coller\" des cellules, ceci peut endommager la structure des cadres Excels (mais des macros de remplissage automatique des cellules librement saisissables sont possibles). "]
[null,null,"- Veuillez ne pas modifier tout élément de mise en page (comme les déplacements, insertions de lignes ou de colonnes)."]
[null,null,"- Le N° FINESS EJ saisi dans la page de garde doit être le même que le N° FINESS EJ du dossier de dépôt sur la plateforme ImportEPRD. "]
[null,null,"- Les FINESS ET (Etablissement) saisis dans le tableau de la page de garde doivent impérativement correspondre aux FINESS ET affectés au dossier sur la plateforme ImportEPRD. "]
[null,null,"- Le déverrouillage peut véroler le fichier (impactant potentiellement la bonne marche de toutes les fonctions automatiques et la reconnaissance du fichier lors du dépôt sur la plateforme)."]
[]
[null,null,"III.- Cas spécifique des activités sans FINESS"]
[]
[null,null,"Afin de permettre l'intégration technique des activités sans FINESS dans le présent cadre, il convient de saisir l'onglet \"Id_CR_SF\" selon le même procédé que le tableau de la page de "]
[null,null,"garde décrit en I. ci-dessus, afin que les onglets du TPER relatifs aux CRP sans finess soient créés automatiquement. "]
[]
[null,null,"Pour chaque ligne, un identifiant est créé automatiquement à partir des données du tableau de l'onglet \"Id_CR_SF\". Les onglets sont créés dans l'ordre de remplissage de ce tableau. "]
[null,null,"Nous vous invitons à compléter ce tableau selon le même ordonnancement chaque année, afin qu'un même numéro d'identification soit toujours attribué à la même activité."]
[]
[]
[]
[]
[]
[]
[null,"Récapitulatif des aides contextuelles "]
[]
[null,1,"N° FINESS (entité juridique)"]
[null,null,"Indiquer le n° FINESS de l'organisme gestionnaire en tant que personnalité morale titulaire des autorisations. Il doit correspondre au N° FINESS EJ du dossier de dépôt sur la plateforme de collecte. Lorsque l'EPRD est établi par une société commerciale pour le compte d'une autre société contrôlée, indiquer le n° FINESS qui a été sélectionné pour déposer le fichier sur la plateforme. "]
[]
[null,2,"Lignes du tableau de la page de garde"]
[null,null,"Saisir les informations du compte de résultat prévisionnel principal (CRPP) et/ou des comptes de résultat prévisionnel annexes (CRPA). "]
[]
[null,3,"Icônes du tableau de la page de garde"]
[null,null,null,": crée les onglets correspondants selon le procédé décrit dans le \"LISEZ-MOI\". "]
[null,null,null,": supprime un CRPA du tableau (dans la colonne C \"Etablissements et services\", sélectionnez la ligne à supprimer puis cliquez sur \"-\")."]
[null,null,null,": modifie une saisie de n° FINESS Etablissement déjà enregistrée. Placez-vous sur la ligne à modifier dans la colonne \"Etablissements et services\", puis cliquez sur l'icône. "]
[]
[null,4,"N° FINESS Etablissement"]
[null,null,"Indiquer le n° FINESS de l'établissement, du service ou de l'activité. "]
[null,null,"Les FINESS saisis doivent impérativement correspondre aux FINESS ET affectés au dossier sur la plateforme de collecte. "]
[null,null,"Ils doivent nécessairement relever du FINESS de l'entité juridique (sauf cas particulier des sociétés commerciales contrôlées). "]
[]
[null,5,"Distinction entre capacité financée/installée"]
[null,null,"Exemples de différence entre les deux notions : \n- Lors d'une extension, les financements peuvent être attribués avant l'installation réelle des places. \n- Lors d'opérations de travaux, des places peuvent rester volontairement inoccupées tout en étant financées."]
[]
[null,6,"Dénomination du CR sans n° FINESS"]
[null,null,"Donner un titre explicite: par exemple nom du site et structure de rattachement."]
[]
[null,7,"N° FINESS de rattachement"]
[null,null,"Saisir le n° FINESS de l'établissement/service/activité auquel le budget est adossé (ESAT, AJ, etc.)."]
[null,null,"S'il n'existe pas de structure d'adossement, saisir le n° FINESS Etablissement de son choix (parmi ceux gérés par l'entité juridique) ou bien le n° FINESS de l'entité juridique, afin de le rattacher à une structure identifiée au sein du périmètre. Il est préconisé de ne pas changer le n° FINESS de rattachement d'une année sur l'autre."]
[]
[null,8,"Nombre de places occupées"]
[null,null,"Correspond au nombre de places occupées au 31/12. Concernant les exercices N-1 et N, extrapolation faite au 31/10 de la prévision au 31/12, en tenant compte notamment de la dernière situation réelle connue, des prévisions d'activité élaborées pour l'exercice N et des éléments disponibles relatifs au classement des personnes par GIR. Ces données serviront à établir les prévisions budgétaires et financières retracées dans l'EPRD."]
[]
[null,9,"Nombre de journées d'activité (annexe 4A)"]
[null,null,"Il s'agit du nombre de journées réalisées décomptées du 01/01 au 31/12 pour l’ensemble des résidents du GIR considéré. Pour les exercices N-1 et N, extrapolation faite au 31/10 de la prévision au 31/12, en tenant compte notamment des dernières réalisations connues et des informations relatives au classement des personnes par GIR. \nPour la campagne budgétaire N, ces données d'activité serviront notamment au calcul : \n- du tarif hébergement ; \n- des montants à déduire du forfait dépendance (participations financières des résidents et recettes prévisionnelles liées aux tarifs facturés au titre des résidents hors département d'implantation). \nEn revanche, elles n'interviennent pas dans le calcul des tarifs journaliers soins et dépendance."]
[]
[null,10,"Taux d'occupation"]
[null,null,"Cette colonne présente le taux d'occupation (TO) et la contribution de chaque GIR au TO. Pour qu'il se calcule automatiquement, il convient de renseigner au préalable le nombre de jours d'ouverture et la capacité installée et financée au 31/12 respectivement dans les tableaux \"Rappel de l'amplitude d'ouverture sur l'année considérée\" et \"Rappel de l'activité théorique\" (lignes 53 et 54 pour le tableau I ; lignes 104 et 105 pour le tableau II; lignes 139 et 140 pour le tableau III)."]
[]
[null,11,"Activité réelle"]
[null,null,"Nombre de journées de présence effective des résidents du 1er janvier au 31 décembre pour l'ensemble des résidents du GIR considéré. Pour la campagne budgétaire N, cette donnée permet de déterminer, pour les tarifs dépendance, le montant des participations financières des résidents (tarif \"GIR 5-6\") et les recettes liées aux résidents dont le domicile de secours se situe hors du département d'implantation de l'établissement."]
[]
[null,12,"Absences de moins de 72 heures"]
[null,null,"Le décompte de ces absences, sur le dernier exercice clos, cumulé avec le nombre de journées d'activité réelle permet de déterminer la situation de l'établissement vis-à-vis des règles de modulation des forfaits soins et dépendance."]
[]
[null,13,"Absences de plus de 72 heures"]
[null,null,"\"Pour la campagne budgétaire N, le décompte de ces absences, cumulé avec le nombre de journées d'activité réelle et des absences de moins de 72 heures, permet le cas échéant de déterminer le tarif hébergement en application de l'article R. 314-204 du CASF."]
[]
[null,14,"Activité relative aux accueils de jour (tableau III)"]
[null,null,"Pour les accueils de jour, le décompte des absences peut ne pas être rempli si elles n'entrent pas dans le calcul des tarifs."]
[]
[null,15,"Accueil temporaire"]
[null,null,"Un jour d'ouverture compte pour 1 dès qu'une plage horaire est prévue sur cette journée, quelle que soit la durée de la plage horaire. "]
[]
[null,16,"Autres modes d'accueil"]
[null,null,"Les lignes \"Autre 1\", \"Autre 2\" et \"Autre 3\" peuvent être utilisées pour des modes d'accueil plus spécifiques (ex : accueil de nuit). Ce choix doit être réalisé en accord avec l'autorité de tarification, pour une présentation homogène entre établissements et services de même catégorie."]
[]
[null,17,"Nombre de jours d'ouverture (annexe 4b)"]
[null,null,"Par convention, une journée compte pour 1, dès lors que l'ouverture est effective et quelle que soit la durée d'ouverture. Par ex : pour un établissement qui n'accueille les usagers que la matinée, une journée d'ouverture vaut 1 (et non 0,5)."]
[]
[null,18,"Activité par dérogation"]
[null,null,"Correspond à l'activité Creton."]
[]
[null,19,"Activité théorique"]
[null,null,"Dans le cas des CAMSP, BAPU, CMPP et SESSAD, il est possible de choisir une autre mesure de l'activité que le nombre de journées (ex : séance). Dans ce cas, l'unité retenue doit être la même entre l'activité théorique et et l'activité prévisionnelle (pour ne pas biaiser le calcul du taux d'occupation). Elle est à préciser dans le rapport budgétaire et financier."]
[]
[null,20,"Activité prévisionnelle (Annexe 4B)"]
[null,null,"Concernant les exercices N-1 et N, il est attendu une extrapolation, produite au 31/10/N-1, du nombre de journées réalisées au 31/12."]
[]
[null,21,"Règles de détermination du financeur public (article L. 242 du CASF)"]
[null,null,"Le CASF distingue trois solutions : \n- Le prix de journée (PJ) est à la charge du CD si le jeune est orienté vers une structure qui relève de la compétence exclusive de cette collectivité (foyer de vie notamment) ; \n- Le PJ est partagé entre le CD et l’Assurance maladie si le jeune est orienté vers une structure relevant de la compétence conjointe ARS et CD (FAM et SAMSAH) ;\n- Dans les autres cas, le PJ reste à la charge de l’Assurance maladie."]
[]
[null,22,"Activité prévisionnelle (annexe 4C)"]
[null,null,"Concernant les exercices N-1 et N, il est attendu : \n1) pour le document transmis au 31 octobre N-1 : \n- une extrapolation du nombre de journées réalisées au 31/12 à partir de l'activité réalisée au 31/10/N-1,\n- une prévision sur l'exercice N. \n2) pour le document transmis au 31 janvier N : \n- la mise à jour avec les données réelles N-1, telles qu’elles sont connues le 31/01/N,\n- le montant des facturations aux conseils départementaux au titre de l’année N-1\n- l’actualisation au 31/01/N du nombre de journées prévisionnelles au titre de l’année N, avec d’éventuels nouveaux éléments non pris en compte lors de la prévision réalisée le 31/10/N-1 (jeunes adultes ayant obtenu une place en établissement pour adultes handicapés, etc.)."]
[]
[null,23,"Nombre de jours de présence des travailleurs en ESAT"]
[null,null,"Colonne à remplir uniquement pour les ESAT qui ne ferment pas durant la période estivale, afin d'adapter l'amplitude d'ouverture au regard de la présence effective des travailleurs durant cette période."]
[]
[null,24,"Activité théorique (annexe 9b)"]
[null,null,"Par convention, une journée compte pour 1, dès lors que l'ouverture est effective et quelle que soit la durée d'ouverture. Par ex : pour un établissement qui n'accueille les usagers que la matinée, une journée d'ouverture vaut 1 (et non 0,5)."]
[]
[null,25,"Activité réalisée (annexe 9B)"]
[null,null,"Dans le cas des CAMSP, BAPU, CMPP et SESSAD, il est possible de choisir une autre mesure de l'activité que le nombre de journées (ex : séance). Dans ce cas, l'unité retenue doit être la même entre l'activité théorique et l'activité prévisionnelle/réalisée (pour ne pas biaiser le calcul du taux d'occupation). Elle est à préciser dans le rapport financier et d'activité."]
[]
[null,26,"Date de la dernière autorisation"]
[null,null,"Si le cadre comprend plusieurs établissements, il faut indiquer la date de l’établissement principal. "]

{"sheet":"Liste","index":1,"n_rows":6,"n_cols":6,"rows_kept":6,"cut":false,"hidden":true,"merged":[]}
["categorie",null,"Correspondance catégorie / modèles d'annexe",null,null,"Categorie_Id_CRP_SF"]
[]
["EHPAD-AJA",null,"Annexe 4A",null,null,"CRP rattaché à un EHPAD-AJA"]
["Autre",null,"Annexe 4B",null,null,"CRP rattaché à d'autres ESSMS"]
["ESSMS du 2° du I de l'article L. 312-1 (Creton)",null,"Annexe 4B + annexe 4C"]
["SAAD",null,"Annexe 4B + annexe 4D"]

{"sheet":"Conversions","index":2,"n_rows":2,"n_cols":2,"rows_kept":2,"cut":false,"hidden":true,"merged":[]}
["Date dernière autorisation",{"$f":"'Page de garde'!D14","v":0}]
["Date de génération du fichier ",{"$f":"'Page de garde'!$A$4","v":0}]

{"sheet":"Contrôle","index":3,"n_rows":650,"n_cols":5,"rows_kept":650,"cut":false,"hidden":false,"merged":[[0,0,0,1],[0,2,0,4]]}
["Gestionnaire",null,"Cadre - version : 18"]
["Item","Valeur Gestionnaire","Référence","Valeur Cadre","Avis"]
[null,null,null,null,{"$f":"IF(B3<>0,IF(ABS(B3-D3)>0.1,\"KO\",\"OK\"),\"\")","v":""}]
[null,null,null,null,""]
[null,null,null,null,""]
[null,null,null,null,""]
[null,null,null,null,""]
[null,null,null,null,""]
[null,null,null,null,""]
[null,null,null,null,""]
[null,null,null,null,""]
[null,null,null,null,""]
[null,null,null,null,""]
[null,null,null,null,""]
[null,null,null,null,""]
[null,null,null,null,""]
[null,null,null,null,""]
[null,null,null,null,""]
[null,null,null,null,""]
[null,null,null,null,""]
[null,null,null,null,""]
[null,null,null,null,""]
[null,null,null,null,""]
[null,null,null,null,""]
[null,null,null,null,""]
[null,null,null,null,""]
[null,null,null,null,""]
[null,null,null,null,""]
[null,null,null,null,""]
[null,null,null,null,""]
[null,null,null,null,""]
[null,null,null,null,""]
[null,null,null,null,""]
[null,null,null,null,""]
[null,null,null,null,""]
[null,null,null,null,""]
[null,null,null,null,""]
[null,null,null,null,""]
[null,null,null,null,""]
[null,null,null,null,""]
[null,null,null,null,""]
[null,null,null,null,""]
[null,null,null,null,""]
[null,null,null,null,""]
[null,null,null,null,""]
[null,null,null,null,""]
[null,null,null,null,""]
[null,null,null,null,""]
[null,null,null,null,""]
[null,null,null,null,""]
[null,null,null,null,""]
[null,null,null,null,""]
[null,null,null,null,""]
[null,null,null,null,""]
[null,null,null,null,""]
[null,null,null,null,""]
[null,null,null,null,""]
[null,null,null,null,""]
[null,null,null,null,""]
[null,null,null,null,""]
[null,null,null,null,""]
[null,null,null,null,""]
[null,null,null,null,""]
[null,null,null,null,""]
[null,null,null,null,""]
[null,null,null,null,""]
[null,null,null,null,{"$f":"IF(B67<>0,IF(ABS(B67-D67)>0.1,\"KO\",\"OK\"),\"\")","v":""}]
[null,null,null,null,""]
[null,null,null,null,""]
[null,null,null,null,""]
[null,null,null,null,""]
[null,null,null,null,""]
[null,null,null,null,""]
[null,null,null,null,""]
[null,null,null,null,""]
[null,null,null,null,""]
[null,null,null,null,""]
[null,null,null,null,""]
[null,null,null,null,""]
[null,null,null,null,""]
[null,null,null,null,""]
[null,null,null,null,""]
[null,null,null,null,""]
[null,null,null,null,""]
[null,null,null,null,""]
[null,null,null,null,""]
[null,null,null,null,""]
[null,null,null,null,""]
[null,null,null,null,""]
[null,null,null,null,""]
[null,null,null,null,""]
[null,null,null,null,""]
[null,null,null,null,""]
[null,null,null,null,""]
[null,null,null,null,""]
[null,null,null,null,""]
[null,null,null,null,""]
[null,null,null,null,""]
[null,null,null,null,""]
[null,null,null,null,""]
[null,null,null,null,""]
[null,null,null,null,""]
[null,null,null,null,""]
[null,null,null,null,""]
[null,null,null,null,""]
[null,null,null,null,""]
[null,null,null,null,""]
[null,null,null,null,""]
[null,null,null,null,""]
[null,null,null,null,""]
[null,null,null,null,""]
[null,null,null,null,""]
[null,null,null,null,""]
[null,null,null,null,""]
[null,null,null,null,""]
[null,null,null,null,""]
[null,null,null,null,""]
[null,null,null,null,""]
[null,null,null,null,""]
[null,null,null,null,""]
[null,null,null,null,""]
[null,null,null,null,""]
[null,null,null,null,""]
[null,null,null,null,""]
[null,null,null,null,""]
[null,null,null,null,""]
[null,null,null,null,""]
[null,null,null,null,""]
[null,null,null,null,""]
[null,null,null,null,""]
[null,null,null,null,{"$f":"IF(B131<>0,IF(ABS(B131-D131)>0.1,\"KO\",\"OK\"),\"\")","v":""}]
[null,null,null,null,""]
[null,null,null,null,""]
[null,null,null,null,""]
[null,null,null,null,""]
[null,null,null,null,""]
[null,null,null,null,""]
[null,null,null,null,""]
[null,null,null,null,""]
[null,null,null,null,""]
[null,null,null,null,""]
[null,null,null,null,""]
[null,null,null,null,""]
[null,null,null,null,""]
[null,null,null,null,""]
[null,null,null,null,""]
[null,null,null,null,""]
[null,null,null,null,""]
[null,null,null,null,""]
[null,null,null,null,""]
[null,null,null,null,""]
[null,null,null,null,""]
[null,null,null,null,""]
[null,null,null,null,""]
[null,null,null,null,""]
[null,null,null,null,""]
[null,null,null,null,""]
[null,null,null,null,""]
[null,null,null,null,""]
[null,null,null,null,""]
[null,null,null,null,""]
[null,null,null,null,""]
[null,null,null,null,""]
[null,null,null,null,""]
[null,null,null,null,""]
[null,null,null,null,""]
[null,null,null,null,""]
[null,null,null,null,""]
[null,null,null,null,""]
[null,null,null,null,""]
[null,null,null,null,""]
[null,null,null,null,""]
[null,null,null,null,""]
[null,null,null,null,""]
[null,null,null,null,""]
[null,null,null,null,""]
[null,null,null,null,""]
[null,null,null,null,""]
[null,null,null,null,""]
[null,null,null,null,""]
[null,null,null,null,""]
[null,null,null,null,""]
[null,null,null,null,""]
[null,null,null,null,""]
[null,null,null,null,""]
[null,null,null,null,""]
[null,null,null,null,""]
[null,null,null,null,""]
[null,null,null,null,""]
[null,null,null,null,""]
[null,null,null,null,""]
[null,null,null,null,""]
[null,null,null,null,""]
[null,null,null,null,""]
[null,null,null,null,{"$f":"IF(B195<>0,IF(ABS(B195-D195)>0.1,\"KO\",\"OK\"),\"\")","v":""}]
[null,null,null,null,""]
[null,null,null,null,""]
[null,null,null,null,""]
[null,null,null,null,""]
[null,null,null,null,""]
[null,null,null,null,""]
[null,null,null,null,""]
[null,null,null,null,""]
[null,null,null,null,""]
[null,null,null,null,""]
[null,null,null,null,""]
[null,null,null,null,""]
[null,null,null,null,""]
[null,null,null,null,""]
[null,null,null,null,""]
[null,null,null,null,""]
[null,null,null,null,""]
[null,null,null,null,""]
[null,null,null,null,""]
[null,null,null,null,""]
[null,null,null,null,""]
[null,null,null,null,""]
[null,null,null,null,""]
[null,null,null,null,""]
[null,null,null,null,""]
[null,null,null,null,""]
[null,null,null,null,""]
[null,null,null,null,""]
[null,null,null,null,""]
[null,null,null,null,""]
[null,null,null,null,""]
[null,null,null,null,""]
[null,null,null,null,""]
[null,null,null,null,""]
[null,null,null,null,""]
[null,null,null,null,""]
[null,null,null,null,""]
[null,null,null,null,""]
[null,null,null,null,""]
[null,null,null,null,""]
[null,null,null,null,""]
[null,null,null,null,""]
[null,null,null,null,""]
[null,null,null,null,""]
[null,null,null,null,""]
[null,null,null,null,""]
[null,null,null,null,""]
[null,null,null,null,""]
[null,null,null,null,""]
[null,null,null,null,""]
[null,null,null,null,""]
[null,null,null,null,""]
[null,null,null,null,""]
[null,null,null,null,""]
[null,null,null,null,""]
[null,null,null,null,""]
[null,null,null,null,""]
[null,null,null,null,""]
[null,null,null,null,""]
[null,null,null,null,""]
[null,null,null,null,""]
[null,null,null,null,""]
[null,null,null,null,""]
[null,null,null,null,{"$f":"IF(B259<>0,IF(ABS(B259-D259)>0.1,\"KO\",\"OK\"),\"\")","v":""}]
[null,null,null,null,""]
[null,null,null,null,""]
[null,null,null,null,""]
[null,null,null,null,""]
[null,null,null,null,""]
[null,null,null,null,""]
[null,null,null,null,""]
[null,null,null,null,""]
[null,null,null,null,""]
[null,null,null,null,""]
[null,null,null,null,""]
[null,null,null,null,""]
[null,null,null,null,""]
[null,null,null,null,""]
[null,null,null,null,""]
[null,null,null,null,""]
[null,null,null,null,""]
[null,null,null,null,""]
[null,null,null,null,""]
[null,null,null,null,""]
[null,null,null,null,""]
[null,null,null,null,""]
[null,null,null,null,""]
[null,null,null,null,""]
[null,null,null,null,""]
[null,null,null,null,""]
[null,null,null,null,""]
[null,null,null,null,""]
[null,null,null,null,""]
[null,null,null,null,""]
[null,null,null,null,""]
[null,null,null,null,""]
[null,null,null,null,""]
[null,null,null,null,""]
[null,null,null,null,""]
[null,null,null,null,""]
[null,null,null,null,""]
[null,null,null,null,""]
[null,null,null,null,""]
[null,null,null,null,""]
[null,null,null,null,""]
[null,null,null,null,""]
[null,null,null,null,""]
[null,null,null,null,""]
[null,null,null,null,""]
[null,null,null,null,""]
[null,null,null,null,""]
[null,null,null,null,""]
[null,null,null,null,""]
[null,null,null,null,""]
[null,null,null,null,""]
[null,null,null,null,""]
[null,null,null,null,""]
[null,null,null,null,""]
[null,null,null,null,""]
[null,null,null,null,""]
[null,null,null,null,""]
[null,null,null,null,""]
[null,null,null,null,""]
[null,null,null,null,""]
[null,null,null,null,""]
[null,null,null,null,""]
[null,null,null,null,""]
[null,null,null,null,{"$f":"IF(B323<>0,IF(ABS(B323-D323)>0.1,\"KO\",\"OK\"),\"\")","v":""}]
[null,null,null,null,""]
[null,null,null,null,""]
[null,null,null,null,""]
[null,null,null,null,""]
[null,null,null,null,""]
[null,null,null,null,""]
[null,null,null,null,""]
[null,null,null,null,""]
[null,null,null,null,""]
[null,null,null,null,""]
[null,null,null,null,""]
[null,null,null,null,""]
[null,null,null,null,""]
[null,null,null,null,""]
[null,null,null,null,""]
[null,null,null,null,""]
[null,null,null,null,""]
[null,null,null,null,""]
[null,null,null,null,""]
[null,null,null,null,""]
[null,null,null,null,""]
[null,null,null,null,""]
[null,null,null,null,""]
[null,null,null,null,""]
[null,null,null,null,""]
[null,null,null,null,""]
[null,null,null,null,""]
[null,null,null,null,""]
[null,null,null,null,""]
[null,null,null,null,""]
[null,null,null,null,""]
[null,null,null,null,""]
[null,null,null,null,""]
[null,null,null,null,""]
[null,null,null,null,""]
[null,null,null,null,""]
[null,null,null,null,""]
[null,null,null,null,""]
[null,null,null,null,""]
[null,null,null,null,""]
[null,null,null,null,""]
[null,null,null,null,""]
[null,null,null,null,""]
[null,null,null,null,""]
[null,null,null,null,""]
[null,null,null,null,""]
[null,null,null,null,""]
[null,null,null,null,""]
[null,null,null,null,""]
[null,null,null,null,""]
[null,null,null,null,""]
[null,null,null,null,""]
[null,null,null,null,""]
[null,null,null,null,""]
[null,null,null,null,""]
[null,null,null,null,""]
[null,null,null,null,""]
[null,null,null,null,""]
[null,null,null,null,""]
[null,null,null,null,""]
[null,null,null,null,""]
[null,null,null,null,""]
[null,null,null,null,""]
[null,null,null,null,{"$f":"IF(B387<>0,IF(ABS(B387-D387)>0.1,\"KO\",\"OK\"),\"\")","v":""}]
[null,null,null,null,""]
[null,null,null,null,""]
[null,null,null,null,""]
[null,null,null,null,""]
[null,null,null,null,""]
[null,null,null,null,""]
[null,null,null,null,""]
[null,null,null,null,""]
[null,null,null,null,""]
[null,null,null,null,""]
[null,null,null,null,""]
[null,null,null,null,""]
[null,null,null,null,""]
[null,null,null,null,""]
[null,null,null,null,""]
[null,null,null,null,""]
[null,null,null,null,""]
[null,null,null,null,""]
[null,null,null,null,""]
[null,null,null,null,""]
[null,null,null,null,""]
[null,null,null,null,""]
[null,null,null,null,""]
[null,null,null,null,""]
[null,null,null,null,""]
[null,null,null,null,""]
[null,null,null,null,""]
[null,null,null,null,""]
[null,null,null,null,""]
[null,null,null,null,""]
[null,null,null,null,""]
[null,null,null,null,""]
[null,null,null,null,""]
[null,null,null,null,""]
[null,null,null,null,""]
[null,null,null,null,""]
[null,null,null,null,""]
[null,null,null,null,""]
[null,null,null,null,""]
[null,null,null,null,""]
[null,null,null,null,""]
[null,null,null,null,""]
[null,null,null,null,""]
[null,null,null,null,""]
[null,null,null,null,""]
[null,null,null,null,""]
[null,null,null,null,""]
[null,null,null,null,""]
[null,null,null,null,""]
[null,null,null,null,""]
[null,null,null,null,""]
[null,null,null,null,""]
[null,null,null,null,""]
[null,null,null,null,""]
[null,null,null,null,""]
[null,null,null,null,""]
[null,null,null,null,""]
[null,null,null,null,""]
[null,null,null,null,""]
[null,null,null,null,""]
[null,null,null,null,""]
[null,null,null,null,""]
[null,null,null,null,""]
[null,null,null,null,{"$f":"IF(B451<>0,IF(ABS(B451-D451)>0.1,\"KO\",\"OK\"),\"\")","v":""}]
[null,null,null,null,""]
[null,null,null,null,""]
[null,null,null,null,""]
[null,null,null,null,""]
[null,null,null,null,""]
[null,null,null,null,""]
[null,null,null,null,""]
[null,null,null,null,""]
[null,null,null,null,""]
[null,null,null,null,""]
[null,null,null,null,""]
[null,null,null,null,""]
[null,null,null,null,""]
[null,null,null,null,""]
[null,null,null,null,""]
[null,null,null,null,""]
[null,null,null,null,""]
[null,null,null,null,""]
[null,null,null,null,""]
[null,null,null,null,""]
[null,null,null,null,""]
[null,null,null,null,""]
[null,null,null,null,""]
[null,null,null,null,""]
[null,null,null,null,""]
[null,null,null,null,""]
[null,null,null,null,""]
[null,null,null,null,""]
[null,null,null,null,""]
[null,null,null,null,""]
[null,null,null,null,""]
[null,null,null,null,""]
[null,null,null,null,""]
[null,null,null,null,""]
[null,null,null,null,""]
[null,null,null,null,""]
[null,null,null,null,""]
[null,null,null,null,""]
[null,null,null,null,""]
[null,null,null,null,""]
[null,null,null,null,""]
[null,null,null,null,""]
[null,null,null,null,""]
[null,null,null,null,""]
[null,null,null,null,""]
[null,null,null,null,""]
[null,null,null,null,""]
[null,null,null,null,""]
[null,null,null,null,""]
[null,null,null,null,""]
[null,null,null,null,""]
[null,null,null,null,""]
[null,null,null,null,""]
[null,null,null,null,""]
[null,null,null,null,""]
[null,null,null,null,""]
[null,null,null,null,""]
[null,null,null,null,""]
[null,null,null,null,""]
[null,null,null,null,""]
[null,null,null,null,""]
[null,null,null,null,""]
[null,null,null,null,""]
[null,null,null,null,{"$f":"IF(B515<>0,IF(ABS(B515-D515)>0.1,\"KO\",\"OK\"),\"\")","v":""}]
[null,null,null,null,""]
[null,null,null,null,""]
[null,null,null,null,""]
[null,null,null,null,""]
[null,null,null,null,""]
[null,null,null,null,""]
[null,null,null,null,""]
[null,null,null,null,""]
[null,null,null,null,""]
[null,null,null,null,""]
[null,null,null,null,""]
[null,null,null,null,""]
[null,null,null,null,""]
[null,null,null,null,""]
[null,null,null,null,""]
[null,null,null,null,""]
[null,null,null,null,""]
[null,null,null,null,""]
[null,null,null,null,""]
[null,null,null,null,""]
[null,null,null,null,""]
[null,null,null,null,""]
[null,null,null,null,""]
[null,null,null,null,""]
[null,null,null,null,""]
[null,null,null,null,""]
[null,null,null,null,""]
[null,null,null,null,""]
[null,null,null,null,""]
[null,null,null,null,""]
[null,null,null,null,""]
[null,null,null,null,""]
[null,null,null,null,""]
[null,null,null,null,""]
[null,null,null,null,""]
[null,null,null,null,""]
[null,null,null,null,""]
[null,null,null,null,""]
[null,null,null,null,""]
[null,null,null,null,""]
[null,null,null,null,""]
[null,null,null,null,""]
[null,null,null,null,""]
[null,null,null,null,""]
[null,null,null,null,""]
[null,null,null,null,""]
[null,null,null,null,""]
[null,null,null,null,""]
[null,null,null,null,""]
[null,null,null,null,""]
[null,null,null,null,""]
[null,null,null,null,""]
[null,null,null,null,""]
[null,null,null,null,""]
[null,null,null,null,""]
[null,null,null,null,""]
[null,null,null,null,""]
[null,null,null,null,""]
[null,null,null,null,""]
[null,null,null,null,""]
[null,null,null,null,""]
[null,null,null,null,""]
[null,null,null,null,""]
[null,null,null,null,{"$f":"IF(B579<>0,IF(ABS(B579-D579)>0.1,\"KO\",\"OK\"),\"\")","v":""}]
[null,null,null,null,""]
[null,null,null,null,""]
[null,null,null,null,""]
[null,null,null,null,""]
[null,null,null,null,""]
[null,null,null,null,""]
[null,null,null,null,""]
[null,null,null,null,""]
[null,null,null,null,""]
[null,null,null,null,""]
[null,null,null,null,""]
[null,null,null,null,""]
[null,null,null,null,""]
[null,null,null,null,""]
[null,null,null,null,""]
[null,null,null,null,""]
[null,null,null,null,""]
[null,null,null,null,""]
[null,null,null,null,""]
[null,null,null,null,""]
[null,null,null,null,""]
[null,null,null,null,""]
[null,null,null,null,""]
[null,null,null,null,""]
[null,null,null,null,""]
[null,null,null,null,""]
[null,null,null,null,""]
[null,null,null,null,""]
[null,null,null,null,""]
[null,null,null,null,""]
[null,null,null,null,""]
[null,null,null,null,""]
[null,null,null,null,""]
[null,null,null,null,""]
[null,null,null,null,""]
[null,null,null,null,""]
[null,null,null,null,""]
[null,null,null,null,""]
[null,null,null,null,""]
[null,null,null,null,""]
[null,null,null,null,""]
[null,null,null,null,""]
[null,null,null,null,""]
[null,null,null,null,""]
[null,null,null,null,""]
[null,null,null,null,{"$f":"IF(B625<>0,IF(ABS(B625-D625)>0.1,\"KO\",\"OK\"),\"\")","v":""}]
[null,null,null,null,""]
[null,null,null,null,""]
[null,null,null,null,""]
[null,null,null,null,""]
[null,null,null,null,""]
[null,null,null,null,""]
[null,null,null,null,""]
[null,null,null,null,""]
[null,null,null,null,""]
[null,null,null,null,""]
[null,null,null,null,""]
[null,null,null,null,""]
[null,null,null,null,""]
[null,null,null,null,""]
[null,null,null,null,""]
[null,null,null,null,""]
[null,null,null,null,""]
[null,null,null,null,{"$f":"IF(B643<>0,IF(ABS(B643-D643)>0.1,\"KO\",\"OK\"),\"\")","v":""}]
[null,null,null,null,""]
[null,null,null,null,""]
[null,null,null,null,""]
[null,null,null,null,""]
[null,null,null,null,""]
[null,null,null,null,""]
[null,null,null,null,""]

{"sheet":"Page de garde","index":4,"n_rows":24,"n_cols":9,"rows_kept":24,"cut":false,"hidden":false,"merged":[[15,3,15,4],[17,3,17,4],[19,3,19,4],[1,2,1,8],[7,3,7,8],[9,3,9,8],[11,3,11,4],[13,3,13,4]]}
["#AACRETON-2019-01#"]
[null,null,"Annexe 4 : Cadre normalisé de présentation de l'annexe \"Activité\" prévu à l'article R. 314-219 du code de l'action sociale et des familles"]
[]
[null,null,"Exercice :"]
[]
[null,null,"N° FINESS (entité juridique) :"]
[]
[null,null,"Organisme gestionnaire :"]
[]
[null,null,"Adresse :"]
[]
[null,null,"Nom de la personne ayant qualité pour représenter l'établissement :"]
[]
[null,null,"Date de la dernière autorisation :"]
[]
[null,null,"Téléphone :"]
[]
[null,null,"Fax :"]
[]
[null,null,"Adresse de messagerie de la personne ayant qualité pour représenter l'établissement ou le service :"]
[]
[null,null,"Liste des établissements et services relevant du périmètre de l'EPRD :"]
[]
[null,null,"Etablissements et services","Adresses","N° FINESS Etablissement","Catégorie","Capacité autorisée","Capacité financée","Capacité installée"]

{"sheet":"Id_CR_SF","index":5,"n_rows":14,"n_cols":9,"rows_kept":14,"cut":false,"hidden":false,"merged":[[1,1,1,8]]}
[]
[null,"Identification des activités sans numéro FINESS"]
[]
[]
[null,"Liste des établissements, services et activités sans FINESS Etablissement relevant du périmètre de l'EPRD :"]
[]
[]
[null,"Identifiant (*)","Dénomination du CRP sans n° FINESS","Adresse","N° FINESS de rattachement","Catégorie","Capacité autorisée","Capacité financée","Capacité installée"]
[null,null,null,null,""]
[]
[]
[]
[null,"(*) Veuillez saisir un identifiant de votre choix comprenant 6 caractères (sans caractères spéciaux, tirets, accents…)."]
[null,"Nous vous invitons à compléter le tableau de l'onglet \"Id_CR_SF\" selon le même ordonnancement chaque année, afin qu'un même numéro d'identification soit toujours attribué à la même activité."]

{"sheet":"Activité EHPAD & PUV","index":6,"n_rows":143,"n_cols":15,"rows_kept":143,"cut":false,"hidden":true,"merged":[[1,3,1,6],[2,3,2,6],[1,1,1,2],[2,1,2,2],[43,1,48,1],[41,4,42,4],[41,5,42,5],[41,6,42,6],[10,1,10,14],[40,1,42,2],[16,3,16,7],[16,8,16,14],[16,2,17,2],[40,8,40,14],[40,3,40,7],[16,1,17,1],[18,1,32,1],[33,1,37,1],[67,1,68,1],[67,2,68,2],[67,3,67,7],[52,1,52,2],[92,4,93,4],[92,14,93,14],[41,7,42,7],[41,14,42,14],[91,3,91,7],[67,8,67,14],[41,10,42,10],[41,11,42,11],[50,3,50,7],[41,12,42,12],[41,3,42,3],[103,1,103,2],[92,5,93,5],[92,6,93,6],[92,7,93,7],[41,13,42,13],[41,9,42,9],[92,11,93,11],[92,12,93,12],[41,8,42,8],[50,8,50,12],[53,1,53,2],[69,1,83,1],[84,1,88,1],[91,1,93,2],[91,8,91,14],[92,3,93,3],[130,1,130,2],[118,14,119,14],[124,1,124,2],[118,8,119,8],[118,13,119,13],[120,1,120,2],[118,12,119,12],[118,10,119,10],[125,1,125,2],[126,1,126,2],[127,1,127,2],[128,1,128,2],[122,1,122,2],[123,1,123,2],[136,8,136,12],[92,9,93,9],[92,10,93,10],[92,13,93,13],[118,5,119,5],[118,6,119,6],[118,7,119,7],[101,8,101,12],[118,11,119,11],[92,8,93,8],[118,9,119,9],[117,8,117,14],[104,1,104,2],[139,1,139,2],[134,1,134,2],[94,1,99,1],[101,3,101,7],[131,1,131,2],[121,1,121,2],[138,1,138,2],[117,1,119,2],[117,3,117,7],[118,3,119,3],[118,4,119,4],[132,1,132,2],[133,1,133,2],[136,3,136,7],[129,1,129,2]]}
[]
[null,"Raison sociale :"]
[null,"FINESS ET :"]
[]
[null,null,null,"Capacité installée dont (à préciser) :"]
[]
[null,null,null,"HP","dont UHR","dont PASA","HT","AJ"]
[]
[]
[]
[null,"ANNEXE 4A: ACTIVITE PREVISIONNELLE DES ETABLISSEMENTS MENTIONNES AUX I ET II DE L'ARTICLE L. 313-12 DU CODE DE L'ACTION SOCIALE ET DES FAMILLES ET DES ACCUEILS DE JOUR AUTONOMES MENTIONNES AU 6° DU I DE L'ARTICLE L. 312-1 DU MEME CODE"]
[]
[null,"I.- Activité prévisionnelle relative aux places d'hébergement permanent des EHPAD (et PUV bénéficiant d'une tarification ternaire)"]
[]
[]
[]
[null,null,"Groupes iso-ressources","Nombre de places occupées",null,null,null,null,"Nombre de journées d'activité"]
[null,null,null,"N-4","N-3","N-2","N-1\n(prévisionnel actualisé)","N   (prévisionnel) (*)","N-4","N-3","N-2","Moyenne des 3 derniers exercices","N-1\n(prévisionnel actualisé)","N   (prévisionnel) (*)","Taux d'occupation N (5)"]
[null,"Décompte de l'activité \"réelle\" (correspondant, pour la partie \"Nombre de journées d'activité\", au nombre de journées de présence effective des résidents)","Résidents classés en GIR 1",null,null,null,null,null,null,null,null,{"$f":"IF(I19=0,0,AVERAGE(I19,J19,K19))","v":0},null,null,{"$f":"IF(M$53=0,0,N19/M$53)","v":0}]
[null,null,"Résidents classés en GIR 2",null,null,null,null,null,null,null,null,0,null,null,{"$f":"IF(M$53=0,0,N20/M$53)","v":0}]
[null,null,"Sous-total Résidents classés dans les GIR 1 et 2",{"$f":"SUM(D19:D20)","v":0},0,0,0,0,0,0,0,0,{"$f":"SUM(M19:M20)","v":0},{"$f":"SUM(N19:N20)","v":0},{"$f":"IF(M$53=0,0,N21/M$53)","v":0}]
[null,null,"Dont résidents hors département d'implantation de l'établissement",null,null,null,null,null,null,null,null,0]
[null,null,"Résidents classés en GIR 3",null,null,null,null,null,null,null,null,0,null,null,{"$f":"IF(M$53=0,0,N23/M$53)","v":0}]
[null,null,"Résidents classés en GIR 4",null,null,null,null,null,null,null,null,0,null,null,{"$f":"IF(M$53=0,0,N24/M$53)","v":0}]
[null,null,"Sous-total Résidents classés dans les GIR 3 et 4",{"$f":"SUM(D23:D24)","v":0},0,0,0,0,0,0,0,0,{"$f":"SUM(M23:M24)","v":0},{"$f":"SUM(N23:N24)","v":0},{"$f":"IF(M$53=0,0,N25/M$53)","v":0}]
[null,null,"Dont résidents hors département d'implantation de l'établissement",null,null,null,null,null,null,null,null,0]
[null,null,"Résidents classés en GIR 5",null,null,null,null,null,null,null,null,0,null,null,{"$f":"IF(M$53=0,0,N27/M$53)","v":0}]
[null,null,"Résidents classés en GIR 6",null,null,null,null,null,null,null,null,0,null,null,{"$f":"IF(M$53=0,0,N28/M$53)","v":0}]
[null,null,"Sous-total Résidents classés dans les GIR 5 et 6",{"$f":"SUM(D27:D28)","v":0},0,0,0,0,0,0,0,0,{"$f":"SUM(M27:M28)","v":0},{"$f":"SUM(N27:N28)","v":0},{"$f":"IF(M$53=0,0,N29/M$53)","v":0}]
[null,null,"Dont résidents hors département d'implantation de l'établissement",null,null,null,null,null,null,null,null,0]
[null,null,"Sous-total résidents de plus de 60 ans",{"$f":"D21+D25+D29","v":0},0,0,0,0,0,0,0,{"$f":"IF(I31=0,0,AVERAGE(I31,J31,K31))","v":0},{"$f":"M21+M25+M29","v":0},{"$f":"N21+N25+N29","v":0},{"$f":"IF(M$53=0,0,N31/M$53)","v":0}]
[null,null,"Résidents de moins de 60 ans",null,null,null,null,null,null,null,null,0,null,null,{"$f":"IF(M$53=0,0,N32/M$53)","v":0}]
[null,null,"Total des places occupées/Total des journées de présence réelle",{"$f":"D21+D25+D29+D32","v":0},{"$f":"E21+E25+E29+E32","v":0},0,0,0,0,0,0,{"$f":"IF(I33=0,0,AVERAGE(I33,J33,K33))","v":0},{"$f":"M21+M25+M29+M32","v":0},{"$f":"N21+N25+N29+N32","v":0},{"$f":"IF(M$53=0,0,N33/M$53)","v":0}]
[null,"Décompte des absences de moins de 72 heures pour convenance personnelle ou hospitalisation","Nombre de jours d'absence pour convenance personnelle (absences de moins de 72 heures) (1)",null,null,null,null,null,null,null,null,0]
[null,null,"Nombre de jours d'absence pour hospitalisation (absences de moins de 72 heures) (1)",null,null,null,null,null,null,null,null,0]
[null,null,"Sous-total des absences de moins de 72 heures",null,null,null,null,null,{"$f":"I34+I35","v":0},{"$f":"J34+J35","v":0},{"$f":"K34+K35","v":0},0,{"$f":"M34+M35","v":0},{"$f":"N34+N35","v":0}]
[null,null,"Rappel du nombre de journées de présence réelle",null,null,null,null,null,{"$f":"I33","v":0},{"$f":"J33","v":0},{"$f":"K33","v":0},0,{"$f":"M33","v":0},{"$f":"N33","v":0}]
[null,null,"Total du nombre de journées de présence réelle et des absences de moins de 72 heures",null,null,null,null,null,{"$f":"I36+I37","v":0},{"$f":"J36+J37","v":0},{"$f":"K36+K37","v":0},0,{"$f":"M36+M37","v":0},{"$f":"N36+N37","v":0},{"$f":"IF(M$53=0,0,N38/M$53)","v":0}]
[null,"(*): Répartition en fonction des prévisions de classement GIR au 31 octobre N-1"]
[null,"I. (Suite) - Activité prévisionnelle relative aux places d'hébergement permanent des EHPAD (et PUV bénéficiant d'une tarification ternaire)"]
[null,null,null,"Nombre de places occupées",null,null,null,null,"Nombre de journées d'activité"]
[null,null,null,"N-4","N-3","N-2","N-1 (prévisionnel actualisé)","N   (prévisionnel)","N-4","N-3","N-2","Moyenne des 3 derniers exercices","N-1 (prévisionnel actualisé)","N   (prévisionnel)","Taux d'occupation N (5)"]
[]
[null,"Décompte des absences de 72 heures et plus pour convenance personnelle ou hospitalisation","Nombre de jours d'absence pour convenance personnelle (absences de 72 heures et plus) (2)",null,null,null,null,null,null,null,null,{"$f":"IF(I44=0,0,AVERAGE(I44,J44,K44))","v":0}]
[null,null,"Nombre de jours d'absence pour hospitalisation (absences de 72 heures et plus) (2)",null,null,null,null,null,null,null,null,0]
[null,null,"Sous-total des absences de 72 heures et plus",null,null,null,null,null,{"$f":"I44+I45","v":0},{"$f":"J44+J45","v":0},{"$f":"K44+K45","v":0},0,{"$f":"M44+M45","v":0},{"$f":"N44+N45","v":0}]
[null,null,"Rappel du total du nombre de journées de présence réelle",null,null,null,null,null,{"$f":"I33","v":0},{"$f":"J33","v":0},{"$f":"K33","v":0},0,{"$f":"M33","v":0},{"$f":"N33","v":0}]
[null,null,"Rappel du nombre de journées d'absence de moins de 72 heures",null,null,null,null,null,{"$f":"I36","v":0},{"$f":"J36","v":0},{"$f":"K36","v":0},0,{"$f":"M36","v":0},{"$f":"N36","v":0}]
[null,null,"Total du nombre de journées de présence réelle et des absences de plus et de moins de 72 heures",null,null,null,null,null,{"$f":"I46+I47+I48","v":0},{"$f":"J46+J47+J48","v":0},{"$f":"K46+K47+K48","v":0},0,{"$f":"M46+M47+M48","v":0},{"$f":"N46+N47+N48","v":0},{"$f":"IF(M$53=0,0,N49/M$53)","v":0}]
[]
[null,null,null,"Nombre de places (3)",null,null,null,null,"Activité correspondante (en nombre de journées)"]
[null,null,null,"N-4","N-3","N-2","N-1","N ","N-4","N-3","N-2","N-1","N "]
[null,"Rappel de l'activité théorique (4)",null,null,null,null,null,null,{"$f":"D53*D54","v":0},{"$f":"E53*E54","v":0},{"$f":"F53*F54","v":0},{"$f":"G53*G54","v":0},{"$f":"H53*H54","v":0}]
[null,"Rappel de l'amplitude d'ouverture sur l'année considérée "]
[null,"(1) : Les premiers jours des absences d'une durée supérieure ou égale à 72 heures ne doivent pas être comptabilisés sur cette ligne."]
[null,"(2) : Y compris les trois premiers jours des absences d'une durée supérieure ou égale à 72 heures"]
[null,"(3) : Pondérées par le nombre de mois d'ouverture en cas d'installation en cours d'année. (Ex. : 10  places ouvertes au 1er juillet N =  5 places comptabilisées sur l'ensemble de l'année N)."]
[null,"(4) : Nombre de places financées x nombre de jours d'ouverture"]
[null,"(5) : Pour le calcul automatique du taux d'occupation (TO) et de la contribution de chaque GIR au TO, renseigner au préalable les tableaux \"Rappel de l'activité théorique\" et \"Rappel de l'amplitude d'ouverture sur l'année considérée\" ci-dessus. "]
[]
[]
[]
[]
[null,"II.- Activité prévisionnelle relative aux hébergements temporaires (activité autonome ou activité rattachée à un EHPAD)"]
[]
[null,"Le cas échéant, dupliquer le tableau ci-dessus."]
[]
[null,null,"Groupes iso-ressources","Nombre de places occupées",null,null,null,null,"Nombre de journées d'activité"]
[null,null,null,"N-4","N-3","N-2","N-1\n(prévisionnel actualisé)","N   (prévisionnel) (*)","N-4","N-3","N-2","Moyenne des 3 derniers exercices","N-1\n(prévisionnel actualisé)","N\n(prévisionnel) (*)","Taux d'occupation N (5)"]
[null,"Décompte de l'activité \"réelle\" (correspondant, pour la partie \"Nombre de journées d'activité\", au nombre de journées de présence effective des résidents)","Résidents classés en GIR 1",null,null,null,null,null,null,null,null,{"$f":"IF(I70=0,0,AVERAGE(I70,J70,K70))","v":0},null,null,{"$f":"IF(M$104=0,0,N70/M$104)","v":0}]
[null,null,"Résidents classés en GIR 2",null,null,null,null,null,null,null,null,0,null,null,{"$f":"IF(M$104=0,0,N71/M$104)","v":0}]
[null,null,"Sous-total Résidents classés dans les GIR 1 et 2",{"$f":"SUM(D70:D71)","v":0},0,0,0,0,0,0,0,0,{"$f":"SUM(M70:M71)","v":0},{"$f":"SUM(N70:N71)","v":0},{"$f":"IF(M$104=0,0,N72/M$104)","v":0}]
[null,null,"Dont résidents hors département d'implantation de l'établissement",null,null,null,null,null,null,null,null,0]
[null,null,"Résidents classés en GIR 3",null,null,null,null,null,null,null,null,0,null,null,{"$f":"IF(M$104=0,0,N74/M$104)","v":0}]
[null,null,"Résidents classés en GIR 4",null,null,null,null,null,null,null,null,0,null,null,{"$f":"IF(M$104=0,0,N75/M$104)","v":0}]
[null,null,"Sous-total Résidents classés dans les GIR 3 et 4",{"$f":"SUM(D74:D75)","v":0},0,0,0,0,0,0,0,0,{"$f":"SUM(M74:M75)","v":0},{"$f":"SUM(N74:N75)","v":0},{"$f":"IF(M$104=0,0,N76/M$104)","v":0}]
[null,null,"Dont résidents hors département d'implantation de l'établissement",null,null,null,null,null,null,null,null,0]
[null,null,"Résidents classés en GIR 5",null,null,null,null,null,null,null,null,0,null,null,{"$f":"IF(M$104=0,0,N78/M$104)","v":0}]
[null,null,"Résidents classés en GIR 6",null,null,null,null,null,null,null,null,0,null,null,{"$f":"IF(M$104=0,0,N79/M$104)","v":0}]
[null,null,"Sous-total Résidents classés dans les GIR 5 et 6",{"$f":"SUM(D78:D79)","v":0},0,0,0,0,0,0,0,0,{"$f":"SUM(M78:M79)","v":0},{"$f":"SUM(N78:N79)","v":0},{"$f":"IF(M$104=0,0,N80/M$104)","v":0}]
[null,null,"Dont résidents hors département d'implantation de l'établissement",null,null,null,null,null,null,null,null,0]
[null,null,"Sous-total résidents de plus de 60 ans",{"$f":"D72+D76+D80","v":0},0,0,0,0,0,0,0,{"$f":"IF(I82=0,0,AVERAGE(I82,J82,K82))","v":0},{"$f":"M72+M76+M80","v":0},{"$f":"N72+N76+N80","v":0},{"$f":"IF(M$104=0,0,N82/M$104)","v":0}]
[null,null,"Résidents de moins de 60 ans",null,null,null,null,null,null,null,null,0,null,null,{"$f":"IF(M$104=0,0,N83/M$104)","v":0}]
[null,null,"Total des places occupées/Total des journées de présence réelle",{"$f":"D72+D76+D80+D83","v":0},{"$f":"E72+E76+E80+E83","v":0},0,0,0,0,0,0,0,{"$f":"M72+M76+M80+M83","v":0},{"$f":"N72+N76+N80+N83","v":0},{"$f":"IF(M$104=0,0,N84/M$104)","v":0}]
[null,"Décompte des absences de moins de 72 heures pour convenance personnelle ou hospitalisation","Nombre de jours d'absence pour convenance personnelle (absences de moins de 72 heures) (1)",null,null,null,null,null,null,null,null,0]
[null,null,"Nombre de jours d'absence pour hospitalisation (absences de moins de 72 heures) (1)",null,null,null,null,null,null,null,null,0]
[null,null,"Sous-total des absences de moins de 72 heures",null,null,null,null,null,{"$f":"I85+I86","v":0},{"$f":"J85+J86","v":0},{"$f":"K85+K86","v":0},0,{"$f":"M85+M86","v":0},{"$f":"N85+N86","v":0}]
[null,null,"Rappel du nombre de journées de présence réelle",null,null,null,null,null,{"$f":"I84","v":0},{"$f":"J84","v":0},{"$f":"K84","v":0},0,{"$f":"M84","v":0},{"$f":"N84","v":0}]
[null,null,"Total du nombre de journées de présence réelle et des absences de moins de 72 heures",null,null,null,null,null,{"$f":"I87+I88","v":0},{"$f":"J87+J88","v":0},{"$f":"K87+K88","v":0},0,{"$f":"M87+M88","v":0},{"$f":"N87+N88","v":0},{"$f":"IF(M$104=0,0,N89/M$104)","v":0}]
[null,"(*): Répartition en fonction des prévisions de classement GIR au 31 octobre N-1"]
[null,"II. (suite) - Activité prévisionnelle relative aux hébergements temporaires (activité autonome ou activité rattachée à un EHPAD)"]
[null,null,null,"Nombre de places occupées",null,null,null,null,"Nombre de journées d'activité"]
[null,null,null,"N-4","N-3","N-2","N-1 (prévisionnel actualisé)","N (prévisionnel)","N-4","N-3","N-2","Moyenne des 3 derniers exercices","N-1 (prévisionnel actualisé)","N (prévisionnel)","Taux d'occupation N (5)"]
[]
[null,"Décompte des absences de 72 heures et plus pour convenance personnelle ou hospitalisation","Nombre de jours d'absence pour convenance personnelle (absences de 72 heures et plus) (2)",null,null,null,null,null,null,null,null,{"$f":"IF(I95=0,0,AVERAGE(I95,J95,K95))","v":0}]
[null,null,"Nombre de jours d'absence pour hospitalisation (absences de 72 heures et plus) (2)",null,null,null,null,null,null,null,null,0]
[null,null,"Sous-total des absences de 72 heures et plus",null,null,null,null,null,{"$f":"I95+I96","v":0},{"$f":"J95+J96","v":0},{"$f":"K95+K96","v":0},0,{"$f":"M95+M96","v":0},{"$f":"N95+N96","v":0}]
[null,null,"Rappel du total du nombre de journées de présence réelle",null,null,null,null,null,{"$f":"I84","v":0},{"$f":"J84","v":0},{"$f":"K84","v":0},0,{"$f":"M84","v":0},{"$f":"N84","v":0}]
[null,null,"Rappel du nombre de journées d'absence de moins de 72 heures",null,null,null,null,null,{"$f":"I87","v":0},{"$f":"J87","v":0},{"$f":"K87","v":0},0,{"$f":"M87","v":0},{"$f":"N87","v":0}]
[null,null,"Total du nombre de journées de présence réelle et des absences de plus et de moins de 72 heures",null,null,null,null,null,{"$f":"I97+I98+I99","v":0},{"$f":"J97+J98+J99","v":0},{"$f":"K97+K98+K99","v":0},0,{"$f":"M97+M98+M99","v":0},{"$f":"N97+N98+N99","v":0},{"$f":"IF(M$104=0,0,N100/M$104)","v":0}]
[]
[null,null,null,"Nombre de places (3)",null,null,null,null,"Activité correspondante (en nombre de journées)"]
[null,null,null,"N-4","N-3","N-2","N-1","N ","N-4","N-3","N-2","N-1","N "]
[null,"Rappel de l'activité théorique (4)",null,null,null,null,null,null,{"$f":"D104*D105","v":0},{"$f":"E104*E105","v":0},{"$f":"F104*F105","v":0},{"$f":"G104*G105","v":0},{"$f":"H104*H105","v":0}]
[null,"Rappel de l'amplitude d'ouverture sur l'année considérée "]
[null,"(1) : Les premiers jours des absences d'une durée supérieure ou égale à 72 heures ne doivent pas être comptabilisés sur cette ligne."]
[null,"(2) : Y compris les trois premiers jours des absences d'une durée supérieure ou égale à 72 heures"]
[null,"(3) : Pondérées par le nombre de mois d'ouverture en cas d'installation en cours d'année. (Ex. : 10  places ouvertes au 1er juillet N =  5 places comptabilisées sur l'ensemble de l'année N)."]
[null,"(4) : Nombre de places financées x nombre de jours d'ouverture"]
[null,"(5) : Pour le calcul automatique du taux d'occupation (TO) et de la contribution de chaque GIR au TO, renseigner au préalable les tableaux \"Rappel de l'activité théorique\" et \"Rappel de l'amplitude d'ouverture sur l'année considérée\" ci-dessus. "]
[]
[]
[]
[null,"III.- Activité prévisionnelle relative aux accueils de jour autonomes ou rattachés à un EHPAD (et PUV bénéficiant d'une tarification dérogatoire)"]
[]
[null,"Le cas échéant, dupliquer le tableau ci-dessous."]
[]
[null,"Groupes iso-ressources",null,"Nombre de bénéficiaires",null,null,null,null,"Activité correspondante (en nombre de journées)"]
[null,null,null,"N-4","N-3","N-2","N-1 (prévisionnel actualisé)","N (prévisionnel)","N-4","N-3","N-2","Moyenne des 3 derniers exercices","N-1 (prévisionnel actualisé)","N (prévisionnel)","Taux d'occupation N (8)"]
[]
[null,"Nombre de bénéficiaires classés en GIR 1",null,null,null,null,null,null,null,null,null,{"$f":"IF(I121=0,0,AVERAGE(I121,J121,K121))","v":0},null,null,{"$f":"IF(M$139=0,0,N121/M$139)","v":0}]
[null,"Dont bénéficiaires hors département d'implantation de l'établissement",null,null,null,null,null,null,null,null,null,{"$f":"IF(I122=0,0,AVERAGE(I122,J122,K122))","v":0},null,null,0]
[null,"Nombre de bénéficiaires classés en GIR 2",null,null,null,null,null,null,null,null,null,{"$f":"IF(I123=0,0,AVERAGE(I123,J123,K123))","v":0},null,null,0]
[null,"Dont bénéficiaires hors département d'implantation de l'établissement",null,null,null,null,null,null,null,null,null,{"$f":"IF(I124=0,0,AVERAGE(I124,J124,K124))","v":0},null,null,0]
[null,"Nombre de bénéficiaires classés en GIR 3",null,null,null,null,null,null,null,null,null,0,null,null,0]
[null,"Dont bénéficiaires hors département d'implantation de l'établissement",null,null,null,null,null,null,null,null,null,{"$f":"IF(I126=0,0,AVERAGE(I126,J126,K126))","v":0},null,null,0]
[null,"Nombre de bénéficiaires classés en GIR 4",null,null,null,null,null,null,null,null,null,0,null,null,0]
[null,"Dont bénéficiaires hors département d'implantation de l'établissement",null,null,null,null,null,null,null,null,null,{"$f":"IF(I128=0,0,AVERAGE(I128,J128,K128))","v":0},null,null,0]
[null,"Nombre de bénéficiaires classés en GIR 5 et 6",null,null,null,null,null,null,null,null,null,0,null,null,0]
[null,"Dont bénéficiaires hors département d'implantation de l'établissement",null,null,null,null,null,null,null,null,null,{"$f":"IF(I130=0,0,AVERAGE(I130,J130,K130))","v":0},null,null,0]
[null,"Nombre total de bénéficiaires / Total des journées de présence réelle (A)",null,{"$f":"D121+D123+D125+D127+D129","v":0},{"$f":"E121+E123+E125+E127+E129","v":0},0,0,0,0,0,0,0,{"$f":"M121+M123+M125+M127+M129","v":0},{"$f":"N121+N123+N125+N127+N129","v":0},0]
[null,"Nombre de journées d'absence de moins de 72 heures (B) (6)",null,null,null,null,null,null,null,null,null,0,null,null,0]
[null,"Sous-total des journées de présence réelles majorées des absences de moins de 72 heures (A)+(B)",null,null,null,null,null,null,{"$f":"I131+I132","v":0},{"$f":"J131+J132","v":0},{"$f":"K131+K132","v":0},0,{"$f":"M131+M132","v":0},{"$f":"N131+N132","v":0},0]
[null,"Nombre de journées d'absence de 72 heures et plus (C) (7)",null,null,null,null,null,null,null,null,null,0,null,null,0]
[null,"Total du nombre de journées de présence réelle et des absences de plus et de moins de 72 heures (A)+(B)+(C)",null,null,null,null,null,null,{"$f":"I133+I134","v":0},{"$f":"J133+J134","v":0},{"$f":"K133+K134","v":0},0,{"$f":"M133+M134","v":0},{"$f":"N133+N134","v":0},0]
[]
[null,null,null,"Nombre de places",null,null,null,null,"Activité correspondante (en nombre de journées)"]
[null,null,null,"N-4","N-3","N-2","N-1","N ","N-4","N-3","N-2","N-1","N "]
[null,"Rappel de l'activité théorique (4)",null,null,null,null,null,null,{"$f":"D139*D140","v":0},{"$f":"E139*E140","v":0},{"$f":"F139*F140","v":0},{"$f":"G139*G140","v":0},{"$f":"H139*H140","v":0}]
[null,"Rappel de l'amplitude d'ouverture sur l'année considérée "]
[null,"(6) : Les premiers jours des absences d'une durée supérieure ou égale à 72 heures ne doivent pas être comptabilisés sur cette ligne."]
[null,"(7) : Y compris les trois premiers jours des absences de 72 heures et plus."]
[null,"(8) : Pour le calcul automatique du taux d'occupation (TO) et de la contribution de chaque GIR au TO, renseigner au préalable les tableaux \"Rappel de l'activité théorique\" et \"Rappel de l'amplitude d'ouverture sur l'année considérée\" ci-dessus. "]

{"sheet":"Activité autres ESMS","index":7,"n_rows":35,"n_cols":10,"rows_kept":35,"cut":false,"hidden":true,"merged":[[23,8,24,9],[23,7,25,7],[11,6,12,6],[23,1,25,2],[11,5,12,5],[33,1,33,2],[23,3,25,3],[23,4,25,4],[23,5,25,5],[23,6,25,6],[32,1,32,2],[1,1,1,2],[1,3,1,5],[2,1,2,2],[2,3,2,5],[11,2,12,2],[10,8,10,9],[11,8,11,9],[9,1,9,9],[11,3,12,3],[11,4,12,4]]}
[]
[null,"Raison sociale :"]
[null,"FINESS ET :"]
[]
[null,null,"Capacité installée Dont (à préciser) :"]
[]
[null,null,"Externat","Semi Internat","Internat","Autre 1 \n(à préciser)","Autre 2 (à préciser)","Autre 3 (à préciser)"]
[]
[]
[null,"ANNEXE 4B: ACTIVITE PREVISIONNELLE DES ETABLISSEMENTS ET SERVICES MENTIONNES A L'ARTICLE L. 313-12-2 DU CODE DE L'ACTION SOCIALE ET DES FAMILLES"]
[]
[null,null,"Lits ou places réels N-2","Lits ou places financés (année N)","Nombre de jours d'ouverture","Nombre de jours de présence des travailleurs en ESAT","Nombre de journées théorique",null,"Activité par dérogation"]
[null,null,null,null,null,null,null,null,"Nombre de personnes","Nombre de journées prévues"]
[null,"Activité théorique","(1)","(2)","(3)","(4) ","5 = (2) x (3)\nou (2) x (4)"]
[null,"TOTAL",{"$f":"SUM(C17:C22)","v":0},{"$f":"SUM(D17:D22)","v":0},null,null,{"$f":"SUM(G17:G22)","v":0},null,{"$f":"SUM(I17:I22)","v":0},{"$f":"SUM(J17:J22)","v":0}]
[]
[null,"Externat",null,null,null,null,{"$f":"IF(F17=\"\",E17*D17,F17*D17)","v":0}]
[null,"Semi-internat",null,null,null,null,0]
[null,"Internat",null,null,null,null,0]
[null,{"$f":"F7","v":"Autre 1 \n(à préciser)"},null,null,null,null,0]
[null,{"$f":"G7","v":"Autre 2 (à préciser)"},null,null,null,null,0]
[null,{"$f":"H7","v":"Autre 3 (à préciser)"},null,null,null,null,0]
[]
[null,"Nature",null,"CA N-4","CA N-3","CA N-2","Moyenne","Activité N-1 (prévision actualisée)","Activité prévisionnelle N"]
[]
[null,null,null,null,null,null,null,null,"Nombre","Taux d'occupation"]
[null,"Activité prévisionnelle",null,"(6)","(7)","(8)","((6)+(7)+(8))/3",null,"(9)","(9)/(5)"]
[null,"TOTAL en journées",null,{"$f":"SUM(D30:D35)","v":0},{"$f":"SUM(E30:E35)","v":0},{"$f":"SUM(F30:F35)","v":0},{"$f":"IF(D28=0,0,AVERAGE(D28,E28,F28))","v":0},{"$f":"SUM(H30:H35)","v":0},{"$f":"SUM(I30:I35)","v":0},{"$f":"IF(G15=0,0,I28/G15)","v":0}]
[]
[null,"Externat",null,null,null,null,{"$f":"IF(D30=0,0,AVERAGE(D30,E30,F30))","v":0},null,null,{"$f":"IF(G17=0,0,I30/G17)","v":0}]
[null,"Semi-internat",null,null,null,null,0,null,null,0]
[null,"Internat",null,null,null,null,0,null,null,0]
[null,{"$f":"F7","v":"Autre 1 \n(à préciser)"},null,null,null,null,0,null,null,0]
[null,{"$f":"G7","v":"Autre 2 (à préciser)"},null,null,null,null,0,null,null,0]
[null,{"$f":"H7","v":"Autre 3 (à préciser)"},null,null,null,null,0,null,null,0]

{"sheet":"Activité L.242-4 CASF","index":8,"n_rows":46,"n_cols":27,"rows_kept":46,"cut":false,"hidden":true,"merged":[[13,8,13,9],[13,12,13,13],[29,8,29,9],[29,10,29,11],[29,12,29,13],[1,1,1,2],[2,1,2,2],[1,3,1,6],[2,3,2,6],[9,1,9,14],[15,12,15,13],[29,2,29,3],[29,4,29,5],[29,6,29,7],[12,15,12,26],[13,15,13,16],[13,17,13,18],[13,19,13,20],[13,21,13,22],[13,23,13,24],[13,25,13,26],[13,10,13,11],[12,2,12,13],[13,4,13,5],[13,2,13,3],[13,6,13,7],[15,2,15,3],[15,4,15,5],[15,6,15,7],[15,8,15,9],[15,10,15,11],[32,15,32,16],[42,3,43,5],[28,2,28,13],[28,15,28,26],[29,15,29,16],[29,17,29,18],[29,19,29,20],[29,21,29,22],[29,23,29,24],[29,25,29,26],[42,1,43,2],[32,2,32,3]]}
[]
[null,"Raison sociale :"]
[null,"FINESS ET :"]
[]
[null,null,"Capacité installée Dont (à préciser) :"]
[]
[null,null,"Externat","Semi Internat","Internat","Autre 1 (à préciser)","Autre 2 (à préciser)","Autre 3 (à préciser)"]
[]
[]
[null,"ANNEXE 4C: ACTIVITE PREVISIONNELLE DES PLUS DE 20 ANS AU TITRE DE L'ARTICLE L. 242-4 DU CODE DE L'ACTION SOCIALE ET DES FAMILLES"]
[]
[null,"1. Tableau prévisionnel au 31 octobre N-1"]
[null,null,"Activité prévisionnelle N-1 actualisée au 31 octobre N-1",null,null,null,null,null,null,null,null,null,null,null,null,"Activité prévisionnelle N"]
[null,null,"TOTAL N-1",null,"+ 20 ans orientés ESAT",null,"+ 20 ans orientés MAS",null,"+ 20 ans orientés en FAM ou SAMSAH",null,"+ 20 ans orientés en foyer (autre que FAM) ou SAVS",null,"Autres (1)",null,null,"TOTAL N",null,"+ 20 ans orientés ESAT",null,"+ 20 ans orientés MAS",null,"+ 20 ans orientés en FAM ou SAMSAH",null,"+ 20 ans orientés en foyer (autre que FAM) ou SAVS",null,"Autres (1)"]
[null,null,"Nb journées","Nb personnes accueillies","Nb journées","Nb personnes accueillies","Nb journées","Nb personnes accueillies","Nb journées","Nb personnes accueillies","Nb journées","Nb personnes accueillies","Nb journées","Nb personnes accueillies",null,"Nb journées","Nb personnes accueillies","Nb journées","Nb personnes accueillies","Nb journées","Nb personnes accueillies","Nb journées","Nb personnes accueillies","Nb journées","Nb personnes accueillies","Nb journées","Nb personnes accueillies"]
[null,"Nombre de journées prévues et réalisées / personnes prévues et accueillies","(de 1 à 5)",null,"(1)",null,"(2)",null,"(3)",null,"(4)",null,"(5)",null,null,"(de 6 à 10)",null,"(6)",null,"(7)",null,"(8)",null,"(9)",null,"(10)"]
[null,"Externat",{"$f":"SUM(E17,G17,I17,K17,M17)","v":0},{"$f":"SUM(F17,H17,J17,L17,N17)","v":0},null,null,null,null,null,null,null,null,null,null,null,{"$f":"SUM(R17,T17,V17,X17,Z17)","v":0},{"$f":"SUM(S17,U17,W17,Y17,AA17)","v":0}]
[null,"Semi-internat",{"$f":"SUM(E18,G18,I18,K18,M18)","v":0},0,null,null,null,null,null,null,null,null,null,null,null,{"$f":"SUM(R18,T18,V18,X18,Z18)","v":0},0]
[null,"Internat",0,0,null,null,null,null,null,null,null,null,null,null,null,0,0]
[null,{"$f":"+F7","v":"Autre 1 (à préciser)"},0,0,null,null,null,null,null,null,null,null,null,null,null,0,0]
[null,{"$f":"+G7","v":"Autre 2 (à préciser)"},0,0,null,null,null,null,null,null,null,null,null,null,null,0,0]
[null,{"$f":"+H7","v":"Autre 3 (à préciser)"},0,0,null,null,null,null,null,null,null,null,null,null,null,0,0]
[]
[null,"TOTAL en journées / personnes accueillies",{"$f":"SUM(C17:C22)","v":0},0,0,0,0,0,0,0,0,0,0,0,null,{"$f":"SUM(P17:P22)","v":0},0,0,0,0,0,0,0,0,0,0,0]
[]
[]
[null,"2. Tableau prévisionnel actualisé au 31 janvier N"]
[]
[null,null,"Activité réelle N-1",null,null,null,null,null,null,null,null,null,null,null,null,"Activité prévisionnelle N actualisée au 31 janvier N"]
[null,null,"TOTAL N-1",null,"+ 20 ans orientés ESAT",null,"+ 20 ans orientés MAS",null,"+ 20 ans orientés en FAM ou SAMSAH",null,"+ 20 ans orientés en foyer (autre que FAM) ou SAVS",null,"Autres (1)",null,null,"TOTAL N",null,"+ 20 ans orientés ESAT",null,"+ 20 ans orientés MAS",null,"+ 20 ans orientés en FAM ou SAMSAH",null,"+ 20 ans orientés en foyer (autre que FAM) ou SAVS",null,"Autres (1)"]
[null,null,"Nb journées","Nb personnes accueillies","Nb journées","Nb personnes accueillies","Nb journées","Nb personnes accueillies","Nb journées","Nb personnes accueillies","Nb journées","Nb personnes accueillies","Nb journées","Nb personnes accueillies",null,"Nb journées","Nb personnes accueillies","Nb journées","Nb personnes accueillies","Nb journées","Nb personnes accueillies","Nb journées","Nb personnes accueillies","Nb journées","Nb personnes accueillies","Nb journées","Nb personnes accueillies"]
[]
[null,"Nombre de journées prévues et réalisées / personnes prévues et accueillies","(de 1 à 5)",null,"(1)",null,"(2)",null,"(3)",null,"(4)",null,"(5)",null,null,"(de 6 à 10)",null,"(6)",null,"(7)",null,"(8)",null,"(9)",null,"(10)"]
[null,"Externat",{"$f":"SUM(E34,G34,I34,K34,M34)","v":0},{"$f":"SUM(F34,H34,J34,L34,N34)","v":0},null,null,null,null,null,null,null,null,null,null,null,{"$f":"SUM(R34,T34,V34,X34,Z34)","v":0},{"$f":"SUM(S34,U34,W34,Y34,AA34)","v":0}]
[null,"Semi-internat",{"$f":"SUM(E35,G35,I35,K35,M35)","v":0},0,null,null,null,null,null,null,null,null,null,null,null,{"$f":"SUM(R35,T35,V35,X35,Z35)","v":0},0]
[null,"Internat",0,0,null,null,null,null,null,null,null,null,null,null,null,0,0]
[null,{"$f":"+F7","v":"Autre 1 (à préciser)"},0,0,null,null,null,null,null,null,null,null,null,null,null,0,{"$f":"SUM(S37,U37,W37,Y37,AA37)","v":0}]
[null,{"$f":"+G7","v":"Autre 2 (à préciser)"},0,0,null,null,null,null,null,null,null,null,null,null,null,0,0]
[null,{"$f":"+H7","v":"Autre 3 (à préciser)"},0,0,null,null,null,null,null,null,null,null,null,null,null,0,0]
[]
[null,"TOTAL en journées / personnes accueillies",{"$f":"SUM(C34:C39)","v":0},0,0,0,0,0,0,0,0,0,0,0,null,{"$f":"SUM(P34:P39)","v":0},0,0,0,0,0,0,0,0,0,0,0]
[]
[null,"Montant total des tarifs facturés aux conseils départementaux au titre de l'année N-1"]
[]
[]
[null,"(1): Dont doubles orientations et orientations ne précisant pas la catégorie d'ESSMS pour adultes handicapés, sauf doubles orientations foyer-de vie/FAM qui doivent être enregistrées dans la colonne \"+ 20 ans orientés en FAM ou SAMSAH\""]

{"sheet":"SAAD","index":9,"n_rows":18,"n_cols":11,"rows_kept":18,"cut":false,"hidden":true,"merged":[[7,6,9,6],[7,8,9,8],[7,10,9,10],[1,1,1,2],[1,3,1,5],[2,1,2,2],[2,3,2,5],[17,1,17,2],[11,1,11,2],[7,1,9,2],[7,3,9,3],[4,1,4,10],[7,7,9,7],[13,1,13,2],[14,1,14,2],[15,1,15,2],[7,4,9,4],[16,1,16,2],[7,5,9,5]]}
[]
[null,"Raison sociale :"]
[null,"FINESS ET :"]
[]
[null,"ANNEXE 4D : ACTIVITE PREVISIONNELLE DES SERVICES MENTIONNES AUX ARTICLES R. 314-130 à R. 314-136 DU CODE DE L'ACTION SOCIALE ET DES FAMILLES"]
[]
[]
[null,"Nature",null,"CA N-4","CA N-3","CA N-2","Moyenne","Activité N-1 (prévision initiale)","Activité N-1 (prévision actualisée)",null,"Activité prévisionnelle N"]
[]
[]
[]
[null,"Nombre d'heures prévisionnelles servant à la répartition des charges (D)"]
[]
[null,"Nombre d'heures prévisionnelles servant à la répartition de la rémunération des aides et employés à domicile (D1)",null,null,null,null,{"$f":"IF(D14=0,0,AVERAGE(D14,E14,F14))","v":0}]
[null,"Nombre d'heures prévisionnelles servant à la répartition de la rémunération des auxiliaires de vie sociale et aides médico-psychologiques (D2)",null,null,null,null,{"$f":"IF(D15=0,0,AVERAGE(D15,E15,F15))","v":0}]
[null,"Nombre d'heures prévisionnelles servant à la répartition de la rémunération des techniciens d’intervention sociale et familiale (D3)",null,null,null,null,{"$f":"IF(D16=0,0,AVERAGE(D16,E16,F16))","v":0}]
[null,"Nombre d'heures prévisionnelles servant à la répartition de la rémunération du personnel d'encadrement et de coordination [(D1) + (D2) + (D3)]",null,{"$f":"SUM(D14:D16)","v":0},{"$f":"SUM(E14:E16)","v":0},{"$f":"SUM(F14:F16)","v":0},{"$f":"IF(D17=0,0,AVERAGE(D17,E17,F17))","v":0},{"$f":"SUM(H14:H16)","v":0},{"$f":"SUM(I14:I16)","v":0},null,{"$f":"SUM(K14:K16)","v":0}]
[null,"Nombre d'heures prévisionnelles servant à la répartition des frais de structure [(D1) + (D2) + (D3)]",null,{"$f":"D17","v":0},{"$f":"E17","v":0},{"$f":"F17","v":0},{"$f":"IF(D18=0,0,AVERAGE(D18,E18,F18))","v":0},{"$f":"H17","v":0},{"$f":"I17","v":0},null,{"$f":"K17","v":0}]

{"sheet":"Activité EHPAD_SF","index":10,"n_rows":143,"n_cols":15,"rows_kept":143,"cut":false,"hidden":true,"merged":[[16,8,16,14],[41,14,42,14],[41,6,42,6],[41,7,42,7],[10,1,10,14],[41,9,42,9],[41,10,42,10],[41,11,42,11],[41,12,42,12],[41,13,42,13],[16,1,17,1],[18,1,32,1],[16,2,17,2],[16,3,16,7],[33,1,37,1],[52,1,52,2],[92,14,93,14],[53,1,53,2],[43,1,48,1],[41,8,42,8],[41,3,42,3],[41,4,42,4],[41,5,42,5],[40,1,42,2],[40,3,40,7],[40,8,40,14],[50,3,50,7],[50,8,50,12],[67,1,68,1],[67,2,68,2],[67,3,67,7],[67,8,67,14],[92,12,93,12],[92,13,93,13],[69,1,83,1],[84,1,88,1],[92,4,93,4],[101,3,101,7],[101,8,101,12],[91,1,93,2],[91,3,91,7],[91,8,91,14],[92,3,93,3],[92,10,93,10],[92,11,93,11],[92,6,93,6],[92,7,93,7],[94,1,99,1],[92,5,93,5],[92,8,93,8],[92,9,93,9],[120,1,120,2],[103,1,103,2],[117,1,119,2],[117,3,117,7],[117,8,117,14],[118,11,119,11],[118,12,119,12],[118,13,119,13],[118,14,119,14],[118,9,119,9],[118,10,119,10],[104,1,104,2],[118,5,119,5],[118,6,119,6],[118,7,119,7],[118,8,119,8],[118,3,119,3],[118,4,119,4],[136,8,136,12],[138,1,138,2],[128,1,128,2],[129,1,129,2],[130,1,130,2],[131,1,131,2],[132,1,132,2],[133,1,133,2],[139,1,139,2],[1,3,1,6],[2,3,2,6],[3,3,3,6],[1,1,1,2],[2,1,2,2],[3,1,3,2],[134,1,134,2],[127,1,127,2],[136,3,136,7],[122,1,122,2],[123,1,123,2],[124,1,124,2],[125,1,125,2],[126,1,126,2],[121,1,121,2]]}
[]
[null,"Dénomination du CRP sans FINESS : "]
[null,"N° Identifiant : "]
[null,"FINESS de rattachement : "]
[]
[null,null,null,"Capacité installée Dont (à préciser) :"]
[null,null,null,"HP","dont UHR","dont PASA","HT","AJ"]
[]
[]
[]
[null,"ANNEXE 4A: ACTIVITE PREVISIONNELLE DES ETABLISSEMENTS MENTIONNES AUX I ET II DE L'ARTICLE L. 313-12 DU CODE DE L'ACTION SOCIALE ET DES FAMILLES ET DES ACCUEILS DE JOUR AUTONOMES MENTIONNES AU 6° DU I DE L'ARTICLE L. 312-1 DU MEME CODE"]
[]
[]
[null,"I.- Activité prévisionnelle relative aux places d'hébergement permanent des EHPAD (et PUV bénéficiant d'une tarification ternaire)"]
[]
[]
[null,null,"Groupes iso-ressources","Nombre de places occupées",null,null,null,null,"Nombre de journées d'activité"]
[null,null,null,"N-4","N-3","N-2","N-1\n(prévisionnel actualisé)","N   (prévisionnel) (*)","N-4","N-3","N-2","Moyenne des 3 derniers exercices","N-1\n(prévisionnel actualisé)","N   (prévisionnel) (*)","Taux d'occupation N (5)"]
[null,"Décompte de l'activité \"réelle\" (correspondant, pour la partie \"Nombre de journées d'activité\", au nombre de journées de présence effective des résidents)","Résidents classés en GIR 1",null,null,null,null,null,null,null,null,{"$f":"IF(I19=0,0,AVERAGE(I19,J19,K19))","v":0},null,null,{"$f":"IF(M$53=0,0,N19/M$53)","v":0}]
[null,null,"Résidents classés en GIR 2",null,null,null,null,null,null,null,null,0,null,null,{"$f":"IF(M$53=0,0,N20/M$53)","v":0}]
[null,null,"Sous-total Résidents classés dans les GIR 1 et 2",{"$f":"SUM(D19:D20)","v":0},0,0,0,0,0,0,0,0,{"$f":"SUM(M19:M20)","v":0},{"$f":"SUM(N19:N20)","v":0},{"$f":"IF(M$53=0,0,N21/M$53)","v":0}]
[null,null,"Dont résidents hors département d'implantation de l'établissement",null,null,null,null,null,null,null,null,0]
[null,null,"Résidents classés en GIR 3",null,null,null,null,null,null,null,null,0,null,null,{"$f":"IF(M$53=0,0,N23/M$53)","v":0}]
[null,null,"Résidents classés en GIR 4",null,null,null,null,null,null,null,null,0,null,null,{"$f":"IF(M$53=0,0,N24/M$53)","v":0}]
[null,null,"Sous-total Résidents classés dans les GIR 3 et 4",{"$f":"SUM(D23:D24)","v":0},0,0,0,0,0,0,0,0,{"$f":"SUM(M23:M24)","v":0},{"$f":"SUM(N23:N24)","v":0},{"$f":"IF(M$53=0,0,N25/M$53)","v":0}]
[null,null,"Dont résidents hors département d'implantation de l'établissement",null,null,null,null,null,null,null,null,0]
[null,null,"Résidents classés en GIR 5",null,null,null,null,null,null,null,null,0,null,null,{"$f":"IF(M$53=0,0,N27/M$53)","v":0}]
[null,null,"Résidents classés en GIR 6",null,null,null,null,null,null,null,null,0,null,null,{"$f":"IF(M$53=0,0,N28/M$53)","v":0}]
[null,null,"Sous-total Résidents classés dans les GIR 5 et 6",{"$f":"SUM(D27:D28)","v":0},0,0,0,0,0,0,0,0,{"$f":"SUM(M27:M28)","v":0},{"$f":"SUM(N27:N28)","v":0},{"$f":"IF(M$53=0,0,N29/M$53)","v":0}]
[null,null,"Dont résidents hors département d'implantation de l'établissement",null,null,null,null,null,null,null,null,0]
[null,null,"Sous-total résidents de plus de 60 ans",{"$f":"D21+D25+D29","v":0},0,0,0,0,0,0,0,{"$f":"IF(I31=0,0,AVERAGE(I31,J31,K31))","v":0},{"$f":"M21+M25+M29","v":0},{"$f":"N21+N25+N29","v":0},{"$f":"IF(M$53=0,0,N31/M$53)","v":0}]
[null,null,"Résidents de moins de 60 ans",null,null,null,null,null,null,null,null,0,null,null,{"$f":"IF(M$53=0,0,N32/M$53)","v":0}]
[null,null,"Total des places occupées/Total des journées de présence réelle",{"$f":"D21+D25+D29+D32","v":0},{"$f":"E21+E25+E29+E32","v":0},0,0,0,0,0,0,0,{"$f":"M21+M25+M29+M32","v":0},{"$f":"N21+N25+N29+N32","v":0},{"$f":"IF(M$53=0,0,N33/M$53)","v":0}]
[null,"Décompte des absences de moins de 72 heures pour convenance personnelle ou hospitalisation","Nombre de jours d'absence pour convenance personnelle (absences de moins de 72 heures) (1)",null,null,null,null,null,null,null,null,0]
[null,null,"Nombre de jours d'absence pour hospitalisation (absences de moins de 72 heures) (1)",null,null,null,null,null,null,null,null,0]
[null,null,"Sous-total des absences de moins de 72 heures",null,null,null,null,null,{"$f":"I34+I35","v":0},{"$f":"J34+J35","v":0},{"$f":"K34+K35","v":0},0,{"$f":"M34+M35","v":0},{"$f":"N34+N35","v":0}]
[null,null,"Rappel du nombre de journées de présence réelle",null,null,null,null,null,{"$f":"I33","v":0},{"$f":"J33","v":0},{"$f":"K33","v":0},0,{"$f":"M33","v":0},{"$f":"N33","v":0}]
[null,null,"Total du nombre de journées de présence réelle et des absences de moins de 72 heures",null,null,null,null,null,{"$f":"I36+I37","v":0},{"$f":"J36+J37","v":0},{"$f":"K36+K37","v":0},0,{"$f":"M36+M37","v":0},{"$f":"N36+N37","v":0},{"$f":"IF(M$53=0,0,N38/M$53)","v":0}]
[null,"(*): Répartition en fonction des prévisions de classement GIR au 31 octobre N-1"]
[null,"I. (Suite) - Activité prévisionnelle relative aux places d'hébergement permanent des EHPAD (et PUV bénéficiant d'une tarification ternaire)"]
[null,null,null,"Nombre de places occupées",null,null,null,null,"Nombre de journées d'activité"]
[null,null,null,"N-4","N-3","N-2","N-1 (prévisionnel actualisé)","N   (prévisionnel)","N-4","N-3","N-2","Moyenne des 3 derniers exercices","N-1 (prévisionnel actualisé)","N   (prévisionnel)","Taux d'occupation N (5)"]
[]
[null,"Décompte des absences de 72 heures et plus pour convenance personnelle ou hospitalisation","Nombre de jours d'absence pour convenance personnelle (absences de 72 heures et plus) (2)",null,null,null,null,null,null,null,null,{"$f":"IF(I44=0,0,AVERAGE(I44,J44,K44))","v":0}]
[null,null,"Nombre de jours d'absence pour hospitalisation (absences de 72 heures et plus) (2)",null,null,null,null,null,null,null,null,0]
[null,null,"Sous-total des absences de 72 heures et plus",null,null,null,null,null,{"$f":"I44+I45","v":0},{"$f":"J44+J45","v":0},{"$f":"K44+K45","v":0},0,{"$f":"M44+M45","v":0},{"$f":"N44+N45","v":0}]
[null,null,"Rappel du total du nombre de journées de présence réelle",null,null,null,null,null,{"$f":"I33","v":0},{"$f":"J33","v":0},{"$f":"K33","v":0},0,{"$f":"M33","v":0},{"$f":"N33","v":0}]
[null,null,"Rappel du nombre de journées d'absence de moins de 72 heures",null,null,null,null,null,{"$f":"I36","v":0},{"$f":"J36","v":0},{"$f":"K36","v":0},0,{"$f":"M36","v":0},{"$f":"N36","v":0}]
[null,null,"Total du nombre de journées de présence réelle et des absences de plus et de moins de 72 heures",null,null,null,null,null,{"$f":"I46+I47+I48","v":0},{"$f":"J46+J47+J48","v":0},{"$f":"K46+K47+K48","v":0},0,{"$f":"M46+M47+M48","v":0},{"$f":"N46+N47+N48","v":0},{"$f":"IF(M$53=0,0,N49/M$53)","v":0}]
[]
[null,null,null,"Nombre de places (3)",null,null,null,null,"Activité correspondante (en nombre de journées)"]
[null,null,null,"N-4","N-3","N-2","N-1","N ","N-4","N-3","N-2","N-1","N "]
[null,"Rappel de l'activité théorique (4)",null,null,null,null,null,null,{"$f":"D53*D54","v":0},{"$f":"E53*E54","v":0},{"$f":"F53*F54","v":0},{"$f":"G53*G54","v":0},{"$f":"H53*H54","v":0}]
[null,"Rappel de l'amplitude d'ouverture sur l'année considérée "]
[null,"(1) : Les premiers jours des absences d'une durée supérieure ou égale à 72 heures ne doivent pas être comptabilisés sur cette ligne."]
[null,"(2) : Y compris les trois premiers jours des absences d'une durée supérieure ou égale à 72 heures"]
[null,"(3) : Pondérées par le nombre de mois d'ouverture en cas d'installation en cours d'année. (Ex. : 10  places ouvertes au 1er juillet N =  5 places comptabilisées sur l'ensemble de l'année N)."]
[null,"(4) : Nombre de places financées x nombre de jours d'ouverture"]
[null,"(5) : Pour le calcul automatique du taux d'occupation (TO) et de la contribution de chaque GIR au TO, renseigner au préalable les tableaux \"Rappel de l'activité théorique\" et \"Rappel de l'amplitude d'ouverture sur l'année considérée\" ci-dessus. "]
[]
[]
[]
[]
[null,"II.- Activité prévisionnelle relative aux hébergements temporaires (activité autonome ou activité rattachée à un EHPAD)"]
[]
[null,"Le cas échéant, dupliquer le tableau ci-dessus."]
[]
[null,null,"Groupes iso-ressources","Nombre de places occupées",null,null,null,null,"Nombre de journées d'activité"]
[null,null,null,"N-4","N-3","N-2","N-1\n(prévisionnel actualisé)","N (prévisionnel) (*)","N-4","N-3","N-2","Moyenne des 3 derniers exercices","N-1\n(prévisionnel actualisé)","N\n(prévisionnel) (*)","Taux d'occupation N (5)"]
[null,"Décompte de l'activité \"réelle\" (correspondant, pour la partie \"Nombre de journées d'activité\", au nombre de journées de présence effective des résidents)","Résidents classés en GIR 1",null,null,null,null,null,null,null,null,{"$f":"IF(I70=0,0,AVERAGE(I70,J70,K70))","v":0},null,null,{"$f":"IF(M$104=0,0,N70/M$104)","v":0}]
[null,null,"Résidents classés en GIR 2",null,null,null,null,null,null,null,null,0,null,null,{"$f":"IF(M$104=0,0,N71/M$104)","v":0}]
[null,null,"Sous-total Résidents classés dans les GIR 1 et 2",{"$f":"SUM(D70:D71)","v":0},0,0,0,0,0,0,0,0,{"$f":"SUM(M70:M71)","v":0},{"$f":"SUM(N70:N71)","v":0},{"$f":"IF(M$104=0,0,N72/M$104)","v":0}]
[null,null,"Dont résidents hors département d'implantation de l'établissement",null,null,null,null,null,null,null,null,0]
[null,null,"Résidents classés en GIR 3",null,null,null,null,null,null,null,null,0,null,null,{"$f":"IF(M$104=0,0,N74/M$104)","v":0}]
[null,null,"Résidents classés en GIR 4",null,null,null,null,null,null,null,null,0,null,null,{"$f":"IF(M$104=0,0,N75/M$104)","v":0}]
[null,null,"Sous-total Résidents classés dans les GIR 3 et 4",{"$f":"SUM(D74:D75)","v":0},0,0,0,0,0,0,0,0,{"$f":"SUM(M74:M75)","v":0},{"$f":"SUM(N74:N75)","v":0},{"$f":"IF(M$104=0,0,N76/M$104)","v":0}]
[null,null,"Dont résidents hors département d'implantation de l'établissement",null,null,null,null,null,null,null,null,0]
[null,null,"Résidents classés en GIR 5",null,null,null,null,null,null,null,null,0,null,null,{"$f":"IF(M$104=0,0,N78/M$104)","v":0}]
[null,null,"Résidents classés en GIR 6",null,null,null,null,null,null,null,null,0,null,null,{"$f":"IF(M$104=0,0,N79/M$104)","v":0}]
[null,null,"Sous-total Résidents classés dans les GIR 5 et 6",{"$f":"SUM(D78:D79)","v":0},0,0,0,0,0,0,0,0,{"$f":"SUM(M78:M79)","v":0},{"$f":"SUM(N78:N79)","v":0},{"$f":"IF(M$104=0,0,N80/M$104)","v":0}]
[null,null,"Dont résidents hors département d'implantation de l'établissement",null,null,null,null,null,null,null,null,0]
[null,null,"Sous-total résidents de plus de 60 ans",{"$f":"D72+D76+D80","v":0},0,0,0,0,0,0,0,0,{"$f":"M72+M76+M80","v":0},{"$f":"N72+N76+N80","v":0},{"$f":"IF(M$104=0,0,N82/M$104)","v":0}]
[null,null,"Résidents de moins de 60 ans",null,null,null,null,null,null,null,null,0,null,null,{"$f":"IF(M$104=0,0,N83/M$104)","v":0}]
[null,null,"Total des places occupées/Total des journées de présence réelle",{"$f":"D72+D76+D80+D83","v":0},{"$f":"E72+E76+E80+E83","v":0},0,0,0,0,0,0,0,{"$f":"M72+M76+M80+M83","v":0},{"$f":"N72+N76+N80+N83","v":0},{"$f":"IF(M$104=0,0,N84/M$104)","v":0}]
[null,"Décompte des absences de moins de 72 heures pour convenance personnelle ou hospitalisation","Nombre de jours d'absence pour convenance personnelle (absences de moins de 72 heures) (1)",null,null,null,null,null,null,null,null,0]
[null,null,"Nombre de jours d'absence pour hospitalisation (absences de moins de 72 heures) (1)",null,null,null,null,null,null,null,null,0]
[null,null,"Sous-total des absences de moins de 72 heures",null,null,null,null,null,{"$f":"I85+I86","v":0},{"$f":"J85+J86","v":0},{"$f":"K85+K86","v":0},0,{"$f":"M85+M86","v":0},{"$f":"N85+N86","v":0}]
[null,null,"Rappel du nombre de journées de présence réelle",null,null,null,null,null,{"$f":"I84","v":0},{"$f":"J84","v":0},{"$f":"K84","v":0},0,{"$f":"M84","v":0},{"$f":"N84","v":0}]
[null,null,"Total du nombre de journées de présence réelle et des absences de moins de 72 heures",null,null,null,null,null,{"$f":"I87+I88","v":0},{"$f":"J87+J88","v":0},{"$f":"K87+K88","v":0},0,{"$f":"M87+M88","v":0},{"$f":"N87+N88","v":0},{"$f":"IF(M$104=0,0,N89/M$104)","v":0}]
[null,"(*): Répartition en fonction des prévisions de classement GIR au 31 octobre N-1"]
[null,"II. (suite) - Activité prévisionnelle relative aux hébergements temporaires (activité autonome ou activité rattachée à un EHPAD)"]
[null,null,null,"Nombre de places occupées",null,null,null,null,"Nombre de journées d'activité"]
[null,null,null,"N-4","N-3","N-2","N-1 (prévisionnel actualisé)","N (prévisionnel)","N-4","N-3","N-2","Moyenne des 3 derniers exercices","N-1 (prévisionnel actualisé)","N (prévisionnel)","Taux d'occupation N (5)"]
[]
[null,"Décompte des absences de 72 heures et plus pour convenance personnelle ou hospitalisation","Nombre de jours d'absence pour convenance personnelle (absences de 72 heures et plus) (2)",null,null,null,null,null,null,null,null,{"$f":"IF(I95=0,0,AVERAGE(I95,J95,K95))","v":0}]
[null,null,"Nombre de jours d'absence pour hospitalisation (absences de 72 heures et plus) (2)",null,null,null,null,null,null,null,null,0]
[null,null,"Sous-total des absences de 72 heures et plus",null,null,null,null,null,{"$f":"I95+I96","v":0},{"$f":"J95+J96","v":0},{"$f":"K95+K96","v":0},0,{"$f":"M95+M96","v":0},{"$f":"N95+N96","v":0}]
[null,null,"Rappel du total du nombre de journées de présence réelle",null,null,null,null,null,{"$f":"I84","v":0},{"$f":"J84","v":0},{"$f":"K84","v":0},0,{"$f":"M84","v":0},{"$f":"N84","v":0}]
[null,null,"Rappel du nombre de journées d'absence de moins de 72 heures",null,null,null,null,null,{"$f":"I87","v":0},{"$f":"J87","v":0},{"$f":"K87","v":0},0,{"$f":"M87","v":0},{"$f":"N87","v":0}]
[null,null,"Total du nombre de journées de présence réelle et des absences de plus et de moins de 72 heures",null,null,null,null,null,{"$f":"I97+I98+I99","v":0},{"$f":"J97+J98+J99","v":0},{"$f":"K97+K98+K99","v":0},0,{"$f":"M97+M98+M99","v":0},{"$f":"N97+N98+N99","v":0},{"$f":"IF(M$104=0,0,N100/M$104)","v":0}]
[]
[null,null,null,"Nombre de places (3)",null,null,null,null,"Activité correspondante (en nombre de journées)"]
[null,null,null,"N-4","N-3","N-2","N-1","N ","N-4","N-3","N-2","N-1","N "]
[null,"Rappel de l'activité théorique (4)",null,null,null,null,null,null,{"$f":"D104*D105","v":0},{"$f":"E104*E105","v":0},{"$f":"F104*F105","v":0},{"$f":"G104*G105","v":0},{"$f":"H104*H105","v":0}]
[null,"Rappel de l'amplitude d'ouverture sur l'année considérée "]
[null,"(1) : Les premiers jours des absences d'une durée supérieure ou égale à 72 heures ne doivent pas être comptabilisés sur cette ligne."]
[null,"(2) : Y compris les trois premiers jours des absences d'une durée supérieure ou égale à 72 heures"]
[null,"(3) : Pondérées par le nombre de mois d'ouverture en cas d'installation en cours d'année. (Ex. : 10  places ouvertes au 1er juillet N =  5 places comptabilisées sur l'ensemble de l'année N)."]
[null,"(4) : Nombre de places financées x nombre de jours d'ouverture"]
[null,"(5) : Pour le calcul automatique du taux d'occupation (TO) et de la contribution de chaque GIR au TO, renseigner au préalable les tableaux \"Rappel de l'activité théorique\" et \"Rappel de l'amplitude d'ouverture sur l'année considérée\" ci-dessus. "]
[]
[]
[]
[null,"III.- Activité prévisionnelle relative aux accueils de jour autonomes ou rattachés à un EHPAD (et PUV bénéficiant d'une tarification dérogatoire)"]
[]
[null,"Le cas échéant, dupliquer le tableau ci-dessous."]
[]
[null,"Groupes iso-ressources",null,"Nombre de bénéficiaires",null,null,null,null,"Activité correspondante (en nombre de journées)"]
[null,null,null,"N-4","N-3","N-2","N-1 (prévisionnel actualisé)","N (prévisionnel)","N-4","N-3","N-2","Moyenne des 3 derniers exercices","N-1 (prévisionnel actualisé)","N (prévisionnel)","Taux d'occupation N (8)"]
[]
[null,"Nombre de bénéficiaires classés en GIR 1",null,null,null,null,null,null,null,null,null,{"$f":"IF(I121=0,0,AVERAGE(I121,J121,K121))","v":0},null,null,{"$f":"IF(M$139=0,0,N121/M$139)","v":0}]
[null,"Dont bénéficiaires hors département d'implantation de l'établissement",null,null,null,null,null,null,null,null,null,{"$f":"IF(I122=0,0,AVERAGE(I122,J122,K122))","v":0},null,null,0]
[null,"Nombre de bénéficiaires classés en GIR 2",null,null,null,null,null,null,null,null,null,{"$f":"IF(I123=0,0,AVERAGE(I123,J123,K123))","v":0},null,null,0]
[null,"Dont bénéficiaires hors département d'implantation de l'établissement",null,null,null,null,null,null,null,null,null,{"$f":"IF(I124=0,0,AVERAGE(I124,J124,K124))","v":0},null,null,0]
[null,"Nombre de bénéficiaires classés en GIR 3",null,null,null,null,null,null,null,null,null,0,null,null,0]
[null,"Dont bénéficiaires hors département d'implantation de l'établissement",null,null,null,null,null,null,null,null,null,{"$f":"IF(I126=0,0,AVERAGE(I126,J126,K126))","v":0},null,null,0]
[null,"Nombre de bénéficiaires classés en GIR 4",null,null,null,null,null,null,null,null,null,0,null,null,0]
[null,"Dont bénéficiaires hors département d'implantation de l'établissement",null,null,null,null,null,null,null,null,null,{"$f":"IF(I128=0,0,AVERAGE(I128,J128,K128))","v":0},null,null,0]
[null,"Nombre de bénéficiaires classés en GIR 5 et 6",null,null,null,null,null,null,null,null,null,0,null,null,0]
[null,"Dont bénéficiaires hors département d'implantation de l'établissement",null,null,null,null,null,null,null,null,null,{"$f":"IF(I130=0,0,AVERAGE(I130,J130,K130))","v":0},null,null,0]
[null,"Nombre total de bénéficiaires / Total des journées de présence réelle (A)",null,{"$f":"D121+D123+D125+D127+D129","v":0},{"$f":"E121+E123+E125+E127+E129","v":0},0,0,0,0,0,0,0,{"$f":"M121+M123+M125+M127+M129","v":0},{"$f":"N121+N123+N125+N127+N129","v":0},0]
[null,"Nombre de journées d'absence de moins de 72 heures (B) (6)",null,null,null,null,null,null,null,null,null,0,null,null,0]
[null,"Sous-total des journées de présence réelles majorées des absences de moins de 72 heures (A)+(B)",null,null,null,null,null,null,{"$f":"I131+I132","v":0},{"$f":"J131+J132","v":0},{"$f":"K131+K132","v":0},0,{"$f":"M131+M132","v":0},{"$f":"N131+N132","v":0},0]
[null,"Nombre de journées d'absence de 72 heures et plus (C) (7)",null,null,null,null,null,null,null,null,null,0,null,null,0]
[null,"Total du nombre de journées de présence réelle et des absences de plus et de moins de 72 heures (A)+(B)+(C)",null,null,null,null,null,null,{"$f":"I133+I134","v":0},{"$f":"J133+J134","v":0},{"$f":"K133+K134","v":0},0,{"$f":"M133+M134","v":0},{"$f":"N133+N134","v":0},0]
[]
[null,null,null,"Nombre de places",null,null,null,null,"Activité correspondante (en nombre de journées)"]
[null,null,null,"N-4","N-3","N-2","N-1","N ","N-4","N-3","N-2","N-1","N "]
[null,"Rappel de l'activité théorique (4)",null,null,null,null,null,null,{"$f":"D139*D140","v":0},{"$f":"E139*E140","v":0},{"$f":"F139*F140","v":0},{"$f":"G139*G140","v":0},{"$f":"H139*H140","v":0}]
[null,"Rappel de l'amplitude d'ouverture sur l'année considérée "]
[null,"(6) : Les premiers jours des absences d'une durée supérieure ou égale à 72 heures ne doivent pas être comptabilisés sur cette ligne."]
[null,"(7) : Y compris les trois premiers jours des absences de 72 heures et plus."]
[null,"(8) : Pour le calcul automatique du taux d'occupation (TO) et de la contribution de chaque GIR au TO, renseigner au préalable les tableaux \"Rappel de l'activité théorique\" et \"Rappel de l'amplitude d'ouverture sur l'année considérée\" ci-dessus. "]

{"sheet":"Activité ESMS_SF","index":11,"n_rows":35,"n_cols":10,"rows_kept":35,"cut":false,"hidden":true,"merged":[[10,8,10,9],[11,8,11,9],[3,1,3,2],[23,3,25,3],[11,2,12,2],[11,5,12,5],[23,7,25,7],[23,8,24,9],[11,6,12,6],[23,6,25,6],[1,1,1,2],[1,3,1,5],[2,1,2,2],[2,3,2,5],[9,1,9,9],[3,3,3,5],[33,1,33,2],[11,3,12,3],[11,4,12,4],[23,4,25,4],[23,5,25,5],[23,1,25,2],[32,1,32,2]]}
[]
[null,"Dénomination du CRP sans FINESS : "]
[null,"N° Identifiant :"]
[null,"FINESS de rattachement  : "]
[]
[null,null,"Capacité installée Dont (à préciser) :"]
[null,null,"Externat","Semi Internat","Internat","Autre 1 \n(à préciser)","Autre 2  (à préciser)","Autre 3  (à préciser)"]
[]
[]
[null,"ANNEXE 4B: ACTIVITE PREVISIONNELLE DES ETABLISSEMENTS ET SERVICES MENTIONNES A L'ARTICLE L. 313-12-2 DU CODE DE L'ACTION SOCIALE ET DES FAMILLES"]
[]
[null,null,"Lits ou places réels N-2","Lits ou places financés (année N)","Nombre de jours d'ouverture","Nombre de jours de présence des travailleurs en ESAT","Nombre de journées théorique",null,"Activité par dérogation"]
[null,null,null,null,null,null,null,null,"Nombre de personnes","Nombre de journées prévues"]
[null,"Activité théorique","(1)","(2)","(3)","(4) ","5 = (2) x (3)\nou (2) x (4)"]
[null,"TOTAL",{"$f":"SUM(C17:C22)","v":0},{"$f":"SUM(D17:D22)","v":0},null,null,{"$f":"SUM(G17:G22)","v":0},null,{"$f":"SUM(I17:I22)","v":0},{"$f":"SUM(J17:J22)","v":0}]
[]
[null,"Externat",null,null,null,null,{"$f":"IF(F17=\"\",E17*D17,F17*D17)","v":0}]
[null,"Semi-internat",null,null,null,null,0]
[null,"Internat",null,null,null,null,0]
[null,{"$f":"F7","v":"Autre 1 \n(à préciser)"},null,null,null,null,0]
[null,{"$f":"G7","v":"Autre 2  (à préciser)"},null,null,null,null,0]
[null,{"$f":"H7","v":"Autre 3  (à préciser)"},null,null,null,null,0]
[]
[null,"Nature",null,"CA N-4","CA N-3","CA N-2","Moyenne","Activité N-1 (prévision actualisée)","Activité prévisionnelle N"]
[]
[null,null,null,null,null,null,null,null,"Nombre","Taux d'occupation"]
[null,"Activité prévisionnelle",null,"(6)","(7)","(8)","((6)+(7)+(8))/3",null,"(9)","(9)/(5)"]
[null,"TOTAL en journées",null,{"$f":"SUM(D30:D35)","v":0},{"$f":"SUM(E30:E35)","v":0},{"$f":"SUM(F30:F35)","v":0},{"$f":"IF(D28=0,0,AVERAGE(D28,E28,F28))","v":0},{"$f":"SUM(H30:H35)","v":0},{"$f":"SUM(I30:I35)","v":0},{"$f":"IF(G15=0,0,I28/G15)","v":0}]
[]
[null,"Externat",null,null,null,null,{"$f":"IF(D30=0,0,AVERAGE(D30,E30,F30))","v":0},null,null,{"$f":"IF(G17=0,0,I30/G17)","v":0}]
[null,"Semi-internat",null,null,null,null,0,null,null,0]
[null,"Internat",null,null,null,null,0,null,null,0]
[null,{"$f":"F7","v":"Autre 1 \n(à préciser)"},null,null,null,null,0,null,null,0]
[null,{"$f":"G7","v":"Autre 2  (à préciser)"},null,null,null,null,0,null,null,0]
[null,{"$f":"H7","v":"Autre 3  (à préciser)"},null,null,null,null,0,null,null,0]